{"text_format":"1","workbook":"xlsx","n_sheets":8,"sheets":["목차","근로자교육","특별교육 (관리감독자)","특별교육","특별교육 2종","교육사진(가로)","DB1","DB2"],"not_rendered":{"charts":0,"images":0,"macros":1,"external_links":0,"defined_names":62,"comments":7,"pivot_tables":0},"unopened":[],"bounds":{"document_bytes":16777216,"sheet_cells":100000,"rows_first":2000,"rows_last":500,"rows_between":2000,"halvings":0,"cell_chars":16384,"cell_head_chars":4096},"cells_cut":0,"cells_raw":0,"read":"whole","date_system":"1900"}

{"sheet":"목차","index":0,"n_rows":133,"n_cols":9,"rows_kept":133,"cut":false,"hidden":false,"merged":[[127,3,132,3],[113,3,126,3],[11,5,11,6],[3,1,3,2],[24,1,25,1],[12,1,12,2],[9,1,9,7],[11,2,11,3],[20,1,23,1],[13,1,19,1],[1,1,1,7],[10,1,10,7],[7,1,7,7],[6,1,6,7],[5,1,5,7],[8,1,8,7],[2,1,2,8],[4,1,4,8]]}
[]
[null,"내용이 복잡해 보이지만 아래 내용을 참고하면 어렵지 않게 사용할 수 있습니다. (셀이 있는 메모는 꼭 확인하는게 좋습니다.)"]
[null,"ㅇ 나눔명조.ttf 폰트(무료폰트입니다.)를 먼저 설치하세요. 열너비, 행높이 등이 나눔명조 기준으로 맞춰져 있습니다. 아래 링크를 클릭하면 다운 받을 수 있습니다. "]
[null," - 왼쪽 다운받기 링크를 클릭하면 다운 받을 수 있습니다. ",null,"나눔명조.ttf 파일 다운받기"]
[null," - 폰트 설치방법은 다운로드 받은 '나눔명조.ttf' 파일을 찾아 오른쪽 마우스 클릭 후 선택하면 설치됩니다. 해당 폰트 적용은 폰트 설치 한 다음 엑셀을 다시 시작하면 됩니다."]
[null,"ㅇ ①교육강사 칸에 직책과 이름을 입력(수정)합니다.  (F16~G20 셀)"]
[null,"ㅇ ②공사명 또는 현장명을 입력합니다. 교육일지와 사진대지에 연결되어 있습니다. (C15 셀)"]
[null,"ㅇ ③교육시간은 지우거나 수정하지 마세요."]
[null,"ㅇ ④ 교육대상 공종 또는 협력업체를 입력합니다. (현장에 맞춰 여기에 입력(수정)하면 교육일지에서 선택할 수 있습니다.)"]
[null,"ㅇ 교육과정에 있는 교육을 선택하면 해당 안전교육일지 페이지로 이동합니다. (예, 가.정기교육 클릭)"]
[null,"ㅇDB1, DB2 시트는 절대 지우면 안됩니다. (엑셀 공부에 관심이 있는 분을 위해 숨기지 않았습니다. ^^)"]
[null,"②공사명","OOO 출입구 설치공사",null,null,"①교육강사",null,"④공종또는협력업체","③교육시간"]
[null,"교육과정 (사용가능한 안전교육일지 종류)",null,"비   고",null,"직   책","이    름","공통",0.041666666666666664]
[null,"1. 근로자","가.정기교육",null,null,"현장대리인","김 현 장","비계",0.083333333333333301]
[null,null,"나.채용 시 교육",null,null,"관리감독자","김 감 독","창호",0.125]
[null,null,"다. 작업내용 변경 시 교육",null,null,"안전관리자","김 안 전","공종4",0.16666666666666699]
[null,null,"라. 특별교육",null,null,"감리단장","이 단 장","공종5",0.20833333333333301]
[null,null,"바. 특별교육 ( 2종 )","작업자가 2가지 특별교육 대상일 때",null,"감리원","박 감 리","공종6",0.25]
[null,null,"물질안전보건자료(MSDS)교육",null,null,null,null,"공종10",0.29166666666666702]
[null,null,"장비 유도원(신호) 교육","타워크레인 신호수 아님",null,null,null,"협력업체1",0.33333333333333398]
[null,"1의2. 관리감독자","가.정기교육",null,null,null,null,"협력업체2",0.375000000000001]
[null,null,"나.채용 시 교육",null,null,null,null,"협력업체3",0.41666666666666702]
[null,null,"다. 작업내용 변경 시 교육",null,null,null,null,null,0.45833333333333298]
[null,null,"라. 특별교육",null,null,null,null,null,0.5]
[null,"3. 특수형태근로종사자","가. 최초 노무제공 시 교육",null,null,null,null,null,0.54166666666666663]
[null,null,"나. 특별교육",null,null,null,null,null,0.58333333333333304]
[null,null,null,null,null,null,null,null,0.625]
[null,null,null,null,null,null,null,null,0.66666666666666696]
[null,null,null,null,null,null,null,null,0.70833333333333304]
[null,null,null,null,null,null,null,null,0.75]
[null,null,null,null,null,null,null,null,0.79166666666666696]
[null,null,null,null,null,null,null,null,0.83333333333333304]
[null,null,null,null,null,null,null,null,0.875]
[null,null,null,null,null,null,null,null,0.91666666666666696]
[null,null,null,null,null,null,null,null,0.95833333333333304]
[null,null,null,null,null,null,null,null,1]
[]
[]
[]
[]
[]
[]
[]
[]
[]
[]
[]
[]
[]
[]
[]
[]
[]
[]
[]
[]
[]
[]
[]
[]
[]
[]
[]
[]
[]
[]
[]
[]
[]
[]
[]
[]
[]
[]
[]
[]
[]
[]
[]
[]
[]
[]
[null,null,null,null,null,null,"1. 고압실 내 작업"]
[null,null,null,null,null,"산소용접기 용단작업","2. 아세틸렌 용접장치 또는 가스집합 용접장치"]
[null,null,null,null,null,"전기용접 작업","3. 밀폐된 장소에서 하는 용접작업 또는 습한 장소에서 하는 전기용접 작업"]
[null,null,null,null,null,null,"4. 폭발성·물반응성·자기반응성·자기발열성 물질, 자연발화성 액체·고체 및 인화성 액체의 제조 또는 취급작업"]
[null,null,null,null,null,"LPG, 산소용접기 용단작업","5. 액화석유가스·수소가스 등 인화성 가스 또는 폭발성 물질 중 가스의 발생장치 취급 작업"]
[null,null,null,null,null,null,"6. 화학설비 중 반응기, 교반기·추출기의 사용 및 세척작업"]
[null,null,null,null,null,null,"7. 화학설비의 탱크 내 작업"]
[null,null,null,null,null,null,"8. 분말·원재료 등을 담은 호퍼·저장창고 등 저장탱크의 내부작업"]
[null,null,null,null,null,null,"9. 건조설비에 의한 물건의 가열·건조작업"]
[null,null,null,null,null,null,"10. 다음 각 목에 해당하는 집재장치 (지간의 경사거리 합계가 350미터 이상인것 등)"]
[null,null,null,null,null,null,"11. 동력에 의하여 작동되는 프레스기계를 5대 이상 보유한 사업장에서 해당 기계로 하는 작업"]
[null,null,null,null,null,null,"12. 목재가공용 기계를 5대 이상 보유한 사업장에서 해당 기계로 하는 작업"]
[null,null,null,null,null,null,"13. 운반용 등 하역기계를 5대 이상 보유한 사업장에서의 해당 기계로 하는 작업"]
[null,null,null,null,null,"카고, 이동식크레인 작업","14. 1톤 이상의 크레인을 사용하는 작업"]
[null,null,null,null,null,null,"15. 건설용 리프트·곤돌라를 이용한 작업"]
[null,null,null,null,null,null,"16. 주물 및 단조(금속을 두들기거나 눌러서 형체를 만드는 일) 작업"]
[null,null,null,null,null,"전기작업","17. 전압이 75볼트 이상인 정전 및 활선작업"]
[null,null,null,null,null,null,"18. 콘크리트 파쇄기를 사용하여 하는 파쇄작업"]
[null,null,null,null,null,"지반굴착","19. 굴착면의 높이가 2미터 이상이 되는 지반 굴착 작업"]
[null,null,null,null,null,"흙막이 가시설공사","20. 흙막이 지보공의 보강 또는 동바리를 설치하거나 해체하는 작업"]
[null,null,null,null,null,null,"21. 터널 안에서의 굴착작업"]
[null,null,null,null,null,null,"22. 굴착면의 높이가 2미터 이상이 되는 암석의 굴착작업"]
[null,null,null,null,null,null,"23. 높이가 2미터 이상인 물건을 쌓거나 무너뜨리는 작업"]
[null,null,null,null,null,null,"24. 선박에 짐을 쌓거나 부리거나 이동시키는 작업"]
[null,null,null,null,null,null,"25. 거푸집 동바리의 조립 또는 해체작업"]
[null,null,null,null,null,null,"26. 비계의 조립·해체 또는 변경작업"]
[null,null,null,null,null,null,"27. 건축물의 골조, 다리의 상부구조 또는 탑의 금속제의 부재로 구성되는 것의 조립· 해체 또는 변경작업"]
[null,null,null,null,null,"스카이 사용 작업","28. 처마 높이가 5미터 이상인 목조건축물의 구조 부재의 조립이나 건축물의 지붕 또는 외벽 밑에서의 설치작업"]
[null,null,null,null,null,null,"29. 콘크리트 인공구조물의 해체 또는 파괴작업"]
[null,null,null,null,null,null,"30. 타워크레인을 설치(상승작업을 포함한다)·해체하는 작업"]
[null,null,null,null,null,null,"31. 보일러(소형 보일러 및 다음 각 목에서 정하는 보일러는 제외한다)의 설치 및 취급 작업"]
[null,null,null,"특별교육",null,"흙막이 가시설공사","32. 게이지 압력을 제곱센티미터당 1킬로그램 이상으로 사용하는 압력용기의 설치 및 취급작업","오거크레인 동행장비"]
[null,null,null,null,null,null,"33. 방사선 업무에 관계되는 작업"]
[null,null,null,null,null,null,"34. 밀폐공간에서의 작업"]
[null,null,null,null,null,null,"35. 허가 및 관리 대상 유해물질의 제조 또는 취급작업"]
[null,null,null,null,null,null,"36. 로봇작업"]
[null,null,null,null,null,null,"37. 석면해체·제거작업"]
[null,null,null,null,null,"용접작업","38. 가연물이 있는 장소에서 하는 화재위험작업"]
[null,null,null,null,null,"타워크레인 신호수","39. 타워크레인을 사용하는 작업시 신호업무를 하는 작업"]
[]
[]
[]
[]
[]
[]
[null,null,null,"특별교육\n 2종 묶음",null,"철근 등 자재하역+굴착","(14+19) 1톤 이상의 크레인을 사용하는 작업+굴착면의 높이가 2미터 이상이되는 지반 굴착작업"]
[null,null,null,null,null,"흙막이 가시설+전기용접공","(20+3) 흙막이 지보공의 보강 작업+습한장소에서 하는 전기용접 작업","가시설 용접작업자"]
[null,null,null,null,null,"용단작업 + 화재위험작업","(2+38) 아세틸렌 용접장치 또는 가스집합 용접장치+가연물이 있는 장소에서 하는 화재위험 작업","가시설 용접작업자"]
[null,null,null,null,null,"휴전작업시 조립 및 가선","(17+27) 전압이 75볼트 이상인 정전 및 활선작업+탑의 금속제의 부재로 구성되는 것의 조립· 해체 또는 변경작업","휴전작업"]
[null,null,null,null,null,"시스템비계 자재 + 비계작업","(14+26) 1톤 이상의 크레인을 사용하는 작업 + 비계의 조립·해체 또는 변경작업"]
[null,null,null,null,null,"철탑조립","(14+27) 1톤 이상의 크레인을 사용하는 작업 + 탑 조립 해체 또는 변경작업"]

{"sheet":"근로자교육","index":1,"n_rows":39,"n_cols":39,"rows_kept":39,"cut":false,"hidden":false,"merged":[[60,23,60,27],[60,19,60,22],[60,14,60,17],[60,10,60,13],[60,5,60,8],[60,1,60,4],[3,30,4,30],[4,19,5,21],[4,22,5,24],[4,25,5,27],[5,0,5,4],[5,5,5,17],[7,0,7,4],[7,5,7,13],[7,14,7,18],[7,19,7,27],[8,0,8,4],[8,5,8,13],[8,14,8,18],[8,19,8,27],[8,28,9,28],[7,29,7,30],[12,0,12,4],[12,5,12,27],[0,0,0,27],[1,0,1,27],[2,0,2,27],[3,0,4,17],[3,18,5,18],[3,19,3,21],[3,22,3,24],[3,25,3,27],[6,25,6,27],[6,0,6,4],[6,5,6,8],[6,9,6,12],[6,13,6,16],[6,17,6,20],[6,21,6,24],[7,31,7,32],[9,0,9,4],[9,5,9,13],[10,25,10,27],[9,29,9,30],[11,0,11,4],[11,5,11,9],[11,10,11,13],[11,14,11,18],[11,19,11,27],[10,29,10,30],[9,14,9,18],[9,19,9,27],[8,29,8,30],[10,0,10,4],[10,5,10,9],[10,10,10,11],[10,12,10,14],[10,16,10,18],[10,19,10,20],[10,21,10,23],[11,29,11,30],[14,0,18,4],[14,5,18,27],[17,29,19,29],[19,5,19,27],[20,5,20,27],[20,29,22,29],[21,5,21,27],[22,5,22,27],[26,5,26,27],[26,29,26,30],[12,29,16,30],[13,0,13,4],[23,5,23,27],[23,29,23,30],[24,5,24,27],[24,29,24,30],[13,17,13,20],[32,0,32,27],[33,0,33,4],[33,5,33,8],[33,9,33,13],[33,14,33,17],[33,18,33,22],[33,23,33,27],[25,5,25,27],[25,29,25,30],[27,5,27,27],[28,5,28,27],[29,5,29,27],[30,5,30,27],[31,5,31,27],[35,1,35,4],[35,5,35,8],[35,10,35,13],[35,14,35,17],[35,19,35,22],[35,23,35,27],[34,1,34,4],[34,5,34,8],[34,10,34,13],[34,14,34,17],[34,19,34,22],[34,23,34,27],[40,1,40,4],[40,5,40,8],[40,10,40,13],[40,14,40,17],[40,19,40,22],[40,23,40,27],[39,1,39,4],[39,5,39,8],[39,10,39,13],[39,14,39,17],[39,19,39,22],[39,23,39,27],[42,1,42,4],[42,5,42,8],[42,10,42,13],[42,14,42,17],[42,19,42,22],[42,23,42,27],[41,1,41,4],[41,5,41,8],[41,10,41,13],[41,14,41,17],[41,19,41,22],[41,23,41,27],[44,1,44,4],[44,5,44,8],[44,10,44,13],[44,14,44,17],[44,19,44,22],[44,23,44,27],[43,1,43,4],[43,5,43,8],[43,10,43,13],[43,14,43,17],[43,19,43,22],[43,23,43,27],[46,1,46,4],[46,5,46,8],[46,10,46,13],[46,14,46,17],[46,19,46,22],[46,23,46,27],[45,1,45,4],[45,5,45,8],[45,10,45,13],[45,14,45,17],[45,19,45,22],[45,23,45,27],[48,1,48,4],[48,5,48,8],[48,10,48,13],[48,14,48,17],[48,19,48,22],[48,23,48,27],[47,1,47,4],[47,5,47,8],[47,10,47,13],[47,14,47,17],[47,19,47,22],[47,23,47,27],[50,1,50,4],[50,5,50,8],[50,10,50,13],[50,14,50,17],[50,19,50,22],[50,23,50,27],[49,1,49,4],[49,5,49,8],[49,10,49,13],[49,14,49,17],[49,19,49,22],[49,23,49,27],[52,1,52,4],[52,5,52,8],[52,10,52,13],[52,14,52,17],[52,19,52,22],[52,23,52,27],[51,1,51,4],[51,5,51,8],[51,10,51,13],[51,14,51,17],[51,19,51,22],[51,23,51,27],[54,1,54,4],[54,5,54,8],[54,10,54,13],[54,14,54,17],[54,19,54,22],[54,23,54,27],[53,1,53,4],[53,5,53,8],[53,10,53,13],[53,14,53,17],[53,19,53,22],[53,23,53,27],[56,1,56,4],[56,5,56,8],[56,10,56,13],[56,14,56,17],[56,19,56,22],[56,23,56,27],[55,1,55,4],[55,5,55,8],[55,10,55,13],[55,14,55,17],[55,19,55,22],[55,23,55,27],[58,10,58,13],[58,14,58,17],[58,19,58,22],[58,23,58,27],[57,1,57,4],[57,5,57,8],[57,10,57,13],[57,14,57,17],[57,19,57,22],[57,23,57,27],[61,1,61,4],[61,5,61,8],[61,10,61,13],[61,14,61,17],[61,19,61,22],[61,23,61,27],[13,21,13,27],[13,5,13,16],[19,0,31,4],[37,0,37,27],[38,0,38,4],[38,5,38,8],[38,9,38,13],[38,14,38,17],[38,18,38,22],[38,23,38,27],[59,1,59,4],[59,5,59,8],[59,10,59,13],[59,14,59,17],[59,19,59,22],[59,23,59,27],[58,1,58,4],[58,5,58,8]]}
["안전보건교육일지"]
[{"$f":"\"관련근거 :\"&'DB1'!E1","v":"관련근거 : 산업안전보건법 제29조제1항 (정기 안전보건교육)"}]
["관련근거 : 산업안전보건법 제77조 (특수형태근로종사자에 대한 안전조치 및 보건조치 등)"]
[{"$f":"목차!C12","v":"OOO 출입구 설치공사"},null,null,null,null,null,null,null,null,null,null,null,null,null,null,null,null,null,"결 재",null,null,null,"안전관리자",null,null,"현장대리인"]
[]
["교육일자",null,null,null,null,{"$f":"IF(AF9>0,AF9,\"\")","v":45342},null,null,null,null,null,null,null,null,null,null,null,null,null,null,null,null,null,null,null,null,null,null,null,null,null,null,null,null,null,null,null,null,"지우거나 수정하지 마세요."]
["공종",null,null,null,null,{"$f":"AF13","v":"공통"},null,null,null,{"$f":"AF14","v":"비계"},null,null,null,{"$f":"AF15","v":"창호"},null,null,null,{"$f":"AF16","v":"공종4"},null,null,null,{"$f":"AF17","v":"공종5"},null,null,null,null,null,null,{"$f":"'DB2'!#REF!","v":{"$error":"#REF!"}},null,null,null,null,null,null,null,null,null,{"$f":"AM8+AM9","v":{"$error":"#REF!"}}]
["교육대상인원",null,null,null,null,{"$f":"AF10","v":10},null,null,null,null,null,null,null,null,"금회실시인원",null,null,null,null,{"$f":"AF11","v":9},null,null,null,null,null,null,null,null,{"$f":"'DB2'!#REF!","v":{"$error":"#REF!"}},"교육대상",null,"가. 근로자 정기교육 / 사무직 종사 근로자",null,"선택합니다.",null,null,null,null,{"$f":"IF(#REF!='DB2'!#REF!,'DB2'!#REF!,)","v":{"$error":"#REF!"}}]
["미실시인원",null,null,null,null,{"$f":"F8-T8","v":1},null,null,null,null,null,null,null,null,"추가교육예정일",null,null,null,null,{"$f":"IF(AF12>0,AF12,\"\")","v":45349},null,null,null,null,null,null,null,null,{"$f":"'DB2'!#REF!","v":{"$error":"#REF!"}},"교육일시",null,45342,"입력합니다 (mm-dd 형식으로)",null,null,null,null,null,{"$f":"IF(AF8=목차!#REF!,'DB2'!#REF!,IF(AF8=목차!#REF!,'DB2'!#REF!,IF(AF8=목차!#REF!,'DB2'!#REF!,0)))","v":{"$error":"#REF!"}}]
["교육방법",null,null,null,null,{"$f":"AF24","v":"동영상+교재"},null,null,null,null,null,null,null,null,"사용교재",null,null,null,null,{"$f":"AF25","v":"안전보건공단 자료외"},null,null,null,null,null,null,null,null,null,"교육대상",null,10,"숫자만 입력합니다."]
["교육시간",null,null,null,null,{"$f":"AF19+AF22","v":4},null,null,null,null,"1회차",null,{"$f":"AF20","v":0.29166666666666702},null,null,"~",{"$f":"AF20+TIME(AF19,,)","v":0.37500000000000033},null,null,"2회차",null,{"$f":"AF23","v":0},null,null,"~",{"$f":"AF23+TIME(AF22,,)","v":0.083333333333333329},null,null,{"$f":"'DB2'!#REF!","v":{"$error":"#REF!"}},"금회 교육실시인원",null,9,"숫자만 입력합니다."]
["교육강사",null,null,null,null,{"$f":"AF26","v":"안전관리자"},null,null,null,null,{"$f":"INDEX(목차!G14:G19,MATCH(근로자교육!AF26,목차!F14:F19,0))","v":"김 안 전"},null,null,null,"교육장소",null,null,null,null,{"$f":"AF27","v":"교육장"},null,null,null,null,null,null,null,null,{"$f":"'DB2'!#REF!","v":{"$error":"#REF!"}},"추가교육예정일",null,45349,"날짜를 (mm-dd)형태로 입력합니다. (없으면 비워둡니다.)"]
["교육대상",null,null,null,null,{"$f":"AF8","v":"가. 근로자 정기교육 / 사무직 종사 근로자"},null,null,null,null,null,null,null,null,null,null,null,null,null,null,null,null,null,null,null,null,null,null,{"$f":"'DB2'!#REF!","v":{"$error":"#REF!"}},"공종 혹은 협력업체",null,"공통","선택합니다."]
["교육명",null,null,null,null,{"$f":"INDEX('DB1'!C6:C20,MATCH(근로자교육!F13,'DB1'!B6:B20,0))","v":"가. 정기교육"},null,null,null,null,null,null,null,null,null,null,null,"법정교육시간",null,null,null,{"$f":"'DB1'!D1","v":"매반기 6시간 이상"},null,null,null,null,null,null,{"$f":"'DB2'!#REF!","v":{"$error":"#REF!"}},null,null,"비계","선택합니다. 추가할 공종이 없으면 Del 키를 누릅니다."]
["대상작업명",null,null,null,null,{"$f":"'DB2'!A4","v":"사업주는 소속 근로자에게 고용노동부령으로 정하는 바에 따라 정기적으로 안전보건교육을 하여야 한다."},null,null,null,null,null,null,null,null,null,null,null,null,null,null,null,null,null,null,null,null,null,null,{"$f":"'DB2'!#REF!","v":{"$error":"#REF!"}},null,null,"창호","선택합니다. 추가할 공종이 없으면 Del 키를 누릅니다."]
[null,null,null,null,null,null,null,null,null,null,null,null,null,null,null,null,null,null,null,null,null,null,null,null,null,null,null,null,{"$f":"'DB2'!#REF!","v":{"$error":"#REF!"}},null,null,"공종4","선택합니다. 추가할 공종이 없으면 Del 키를 누릅니다."]
[null,null,null,null,null,null,null,null,null,null,null,null,null,null,null,null,null,null,null,null,null,null,null,null,null,null,null,null,null,null,null,"공종5","선택합니다. 추가할 공종이 없으면 Del 키를 누릅니다."]
[null,null,null,null,null,null,null,null,null,null,null,null,null,null,null,null,null,null,null,null,null,null,null,null,null,null,null,null,null,"1회차 \n교육","법정교육시간",{"$f":"V14","v":"매반기 6시간 이상"},"◀ 대상작업 법정 교육시간입니다."]
[null,null,null,null,null,null,null,null,null,null,null,null,null,null,null,null,null,null,null,null,null,null,null,null,null,null,null,null,null,null,"교육시간",2,"숫자만 입력합니다. (노란 테두리 내 법정교육시간을 참고합니다.)"]
["교육내용",null,null,null,null,{"$f":"'DB2'!A6","v":"산업안전 및 사고 예방에 관한 사항"},null,null,null,null,null,null,null,null,null,null,null,null,null,null,null,null,null,null,null,null,null,null,null,null,"시작시간",0.29166666666666702,"선택합니다."]
[null,null,null,null,null,{"$f":"'DB2'!A7","v":"산업보건 및 직업병 예방에 관한 사항"},null,null,null,null,null,null,null,null,null,null,null,null,null,null,null,null,null,null,null,null,null,null,null,"2회차\n교육","법정교육시간",{"$f":"V14","v":"매반기 6시간 이상"},"◀ 대상작업 법정 교육 시간입니다."]
[null,null,null,null,null,{"$f":"'DB2'!A8","v":"위험성 평가에 관한 사항 <개정 2023. 9. 27.>"},null,null,null,null,null,null,null,null,null,null,null,null,null,null,null,null,null,null,null,null,null,null,null,null,"교육시간",2,"숫자만 입력합니다. (추가교육이 없으면 비워둡니다.)"]
[null,null,null,null,null,{"$f":"'DB2'!A9","v":"건강증진 및 질병 예방에 관한 사항"},null,null,null,null,null,null,null,null,null,null,null,null,null,null,null,null,null,null,null,null,null,null,null,null,"시작시간",null,"선택합니다. 추가교육이 없으면 Del 키를 누릅니다."]
[null,null,null,null,null,{"$f":"'DB2'!A10","v":"유해·위험 작업환경 관리에 관한 사항"},null,null,null,null,null,null,null,null,null,null,null,null,null,null,null,null,null,null,null,null,null,null,null,"교육방법",null,"동영상+교재","선택합니다."]
[null,null,null,null,null,{"$f":"'DB2'!A11","v":"산업안전보건법령 및 산업재해보상보험 제도에 관한 사항"},null,null,null,null,null,null,null,null,null,null,null,null,null,null,null,null,null,null,null,null,null,null,null,"사용교재",null,"안전보건공단 자료외","입력합니다."]
[null,null,null,null,null,{"$f":"'DB2'!A12","v":"직무스트레스 예방 및 관리에 관한 사항"},null,null,null,null,null,null,null,null,null,null,null,null,null,null,null,null,null,null,null,null,null,null,null,"교육강사",null,"안전관리자","선택합니다."]
[null,null,null,null,null,{"$f":"'DB2'!A13","v":"직장 내 괴롭힘, 고객의 폭언 등으로 인한 건강장해 예방 및 관리에 관한 사항"},null,null,null,null,null,null,null,null,null,null,null,null,null,null,null,null,null,null,null,null,null,null,null,"교육장소",null,"교육장","선택합니다."]
[null,null,null,null,null,{"$f":"'DB2'!A14","v":""}]
[null,null,null,null,null,{"$f":"'DB2'!A15","v":""}]
[null,null,null,null,null,{"$f":"'DB2'!A16","v":""}]
[null,null,null,null,null,{"$f":"'DB2'!A17","v":""}]
[null,null,null,null,null,{"$f":"'DB2'!A18","v":""}]
["안전교육 참석자 명단 (1)"]
["이    름",null,null,null,null,"서  명",null,null,null,"이    름",null,null,null,null,"서  명",null,null,null,"이    름",null,null,null,null,"서  명"]
[]
[]
[null,null,null,null,null,null,null,null,null,null,null,null,null,null,null,null,null,null,null,null,null,null,null,null,null,null,null,null,null," ---------------------------------------------------------------------------------------------------------------------------"]
["안전교육 참석자 명단 (2)"]
["이    름",null,null,null,null,"서  명",null,null,null,"이    름",null,null,null,null,"서  명",null,null,null,"이    름",null,null,null,null,"서  명"]

{"sheet":"특별교육 (관리감독자)","index":2,"n_rows":65,"n_cols":38,"rows_kept":65,"cut":false,"hidden":false,"merged":[[64,1,64,4],[64,5,64,8],[64,10,64,13],[64,14,64,17],[64,19,64,22],[64,23,64,27],[63,1,63,4],[63,5,63,8],[63,10,63,13],[63,14,63,17],[63,19,63,22],[63,23,63,27],[62,1,62,4],[62,5,62,8],[62,10,62,13],[62,14,62,17],[62,19,62,22],[62,23,62,27],[61,1,61,4],[61,5,61,8],[61,10,61,13],[61,14,61,17],[61,19,61,22],[61,23,61,27],[60,1,60,4],[60,5,60,8],[60,10,60,13],[60,14,60,17],[60,19,60,22],[60,23,60,27],[59,1,59,4],[59,5,59,8],[59,10,59,13],[59,14,59,17],[59,19,59,22],[59,23,59,27],[58,1,58,4],[58,5,58,8],[58,10,58,13],[58,14,58,17],[58,19,58,22],[58,23,58,27],[57,1,57,4],[57,5,57,8],[57,10,57,13],[57,14,57,17],[57,19,57,22],[57,23,57,27],[56,1,56,4],[56,5,56,8],[56,10,56,13],[56,14,56,17],[56,19,56,22],[56,23,56,27],[55,1,55,4],[55,5,55,8],[55,10,55,13],[55,14,55,17],[55,19,55,22],[55,23,55,27],[54,1,54,4],[54,5,54,8],[54,10,54,13],[54,14,54,17],[54,19,54,22],[54,23,54,27],[53,1,53,4],[53,5,53,8],[53,10,53,13],[53,14,53,17],[53,19,53,22],[53,23,53,27],[52,1,52,4],[52,5,52,8],[52,10,52,13],[52,14,52,17],[52,19,52,22],[52,23,52,27],[51,1,51,4],[51,5,51,8],[51,10,51,13],[51,14,51,17],[51,19,51,22],[51,23,51,27],[50,1,50,4],[50,5,50,8],[50,10,50,13],[50,14,50,17],[50,19,50,22],[50,23,50,27],[49,1,49,4],[49,5,49,8],[49,10,49,13],[49,14,49,17],[49,19,49,22],[49,23,49,27],[48,1,48,4],[48,5,48,8],[48,10,48,13],[48,14,48,17],[48,19,48,22],[48,23,48,27],[47,1,47,4],[47,5,47,8],[47,10,47,13],[47,14,47,17],[47,19,47,22],[47,23,47,27],[46,1,46,4],[46,5,46,8],[46,10,46,13],[46,14,46,17],[46,19,46,22],[46,23,46,27],[45,1,45,4],[45,5,45,8],[45,10,45,13],[45,14,45,17],[45,19,45,22],[45,23,45,27],[44,1,44,4],[44,5,44,8],[44,10,44,13],[44,14,44,17],[44,19,44,22],[44,23,44,27],[43,1,43,4],[43,5,43,8],[43,10,43,13],[43,14,43,17],[43,19,43,22],[43,23,43,27],[42,1,42,4],[42,5,42,8],[42,10,42,13],[42,14,42,17],[42,19,42,22],[42,23,42,27],[41,1,41,4],[41,5,41,8],[41,10,41,13],[41,14,41,17],[41,19,41,22],[41,23,41,27],[33,5,33,27],[34,5,34,27],[40,1,40,4],[40,5,40,8],[40,10,40,13],[40,14,40,17],[40,19,40,22],[40,23,40,27],[35,5,35,27],[36,5,36,27],[37,5,37,27],[38,0,38,27],[39,0,39,4],[39,5,39,8],[39,9,39,13],[39,14,39,17],[39,18,39,22],[39,23,39,27],[24,5,24,27],[24,29,24,30],[25,5,25,27],[25,29,25,30],[26,5,26,27],[26,29,26,30],[15,0,19,4],[15,5,19,27],[18,29,20,29],[20,0,37,2],[20,3,29,4],[20,5,20,27],[21,5,21,27],[21,29,23,29],[22,5,22,27],[23,5,23,27],[27,5,27,27],[27,29,27,30],[28,5,28,27],[29,5,29,27],[30,3,37,4],[30,5,30,27],[31,5,31,27],[32,5,32,27],[12,0,12,4],[12,5,12,27],[12,29,12,30],[13,0,13,4],[13,5,13,27],[13,29,17,30],[14,0,14,4],[14,5,14,13],[14,14,14,18],[14,19,14,27],[10,25,10,27],[10,29,10,30],[11,0,11,4],[11,5,11,9],[11,10,11,13],[11,14,11,18],[11,19,11,27],[11,29,11,30],[9,14,9,18],[9,19,9,27],[9,29,9,30],[10,0,10,4],[10,5,10,9],[10,10,10,11],[10,12,10,14],[10,16,10,18],[10,19,10,20],[10,21,10,23],[7,31,7,32],[8,0,8,4],[8,5,8,13],[8,14,8,18],[8,19,8,27],[8,28,9,28],[8,29,8,30],[8,31,8,32],[9,0,9,4],[9,5,9,13],[6,25,6,27],[7,0,7,4],[7,5,7,13],[7,14,7,18],[7,19,7,27],[7,29,7,30],[6,0,6,4],[6,5,6,8],[6,9,6,12],[6,13,6,16],[6,17,6,20],[6,21,6,24],[3,30,4,30],[4,19,5,21],[4,22,5,24],[4,25,5,27],[5,0,5,4],[5,5,5,17],[0,0,0,27],[1,0,1,27],[2,0,2,27],[3,0,4,17],[3,18,5,18],[3,19,3,21],[3,22,3,24],[3,25,3,27]]}
["특별 안전보건교육일지"]
[{"$f":"'DB1'!E3","v":" 산업안전보건법 제29조제3항 (유해위험작업 채용시 및 작업내용 변경시 안전보건교육)"}]
["관련근거 : 산업안전보건법 제77조 (특수형태근로종사자에 대한 안전조치 및 보건조치 등)"]
[{"$f":"목차!C12","v":"OOO 출입구 설치공사"},null,null,null,null,null,null,null,null,null,null,null,null,null,null,null,null,null,"결 재",null,null,null,"안전관리자",null,null,"현장대리인"]
[]
["교육일자",null,null,null,null,{"$f":"IF(AF10>0,AF10,\"\")","v":45321}]
["공종",null,null,null,null,{"$f":"AF14","v":"창호"},null,null,null,{"$f":"AF15","v":"비계"},null,null,null,{"$f":"AF16","v":0},null,null,null,{"$f":"AF17","v":0},null,null,null,{"$f":"AF18","v":0},null,null,null,null,null,null,{"$f":"'DB2'!#REF!","v":{"$error":"#REF!"}}]
["교육대상인원",null,null,null,null,{"$f":"AF11","v":10},null,null,null,null,null,null,null,null,"금회실시인원",null,null,null,null,{"$f":"AF12","v":9},null,null,null,null,null,null,null,null,{"$f":"'DB2'!#REF!","v":{"$error":"#REF!"}},"교육대상작업명",null,"1. 고압실 내 작업",null,"특별교육명을 선택합니다."]
["미실시인원",null,null,null,null,{"$f":"F8-T8","v":1},null,null,null,null,null,null,null,null,"추가교육예정일",null,null,null,null,{"$f":"IF(AF13>0,AF13,\"\")","v":45327},null,null,null,null,null,null,null,null,{"$f":"'DB2'!#REF!","v":{"$error":"#REF!"}},"교육대상",null,"라. 관리감독자 (특별교육 / 단기간 또는 간헐적작업)",null,"작업기간을 선택합니다.",null,null,null,{"$f":"IF(AF9='DB1'!B83,'DB1'!A83,IF('특별교육 (관리감독자)'!AF9='DB1'!B84,'DB1'!A84,0))","v":2}]
["교육방법",null,null,null,null,{"$f":"AF25","v":"동영상+교재"},null,null,null,null,null,null,null,null,"사용교재",null,null,null,null,{"$f":"AF26","v":"안전보건공단 자료외"},null,null,null,null,null,null,null,null,null,"교육일시",null,45321,"입력합니다 (mm-dd 형식으로)"]
["교육시간",null,null,null,null,{"$f":"AF20+AF23","v":4},null,null,null,null,"1회차",null,{"$f":"AF21","v":0.29166666666666702},null,null,"~",{"$f":"AF21+TIME(AF20,,)","v":0.37500000000000033},null,null,"2회차",null,{"$f":"AF24","v":0.45833333333333298},null,null,"~",{"$f":"AF24+TIME(AF23,,)","v":0.5416666666666663},null,null,{"$f":"'DB2'!#REF!","v":{"$error":"#REF!"}},"교육대상",null,10,"숫자만 입력합니다."]
["교육강사",null,null,null,null,{"$f":"AF27","v":"감리원"},null,null,null,null,{"$f":"INDEX(목차!G14:G19,MATCH(AF27,목차!F14:F19,0))","v":"박 감 리"},null,null,null,"교육장소",null,null,null,null,{"$f":"AF28","v":"교육장"},null,null,null,null,null,null,null,null,{"$f":"'DB2'!#REF!","v":{"$error":"#REF!"}},"금회 교육실시인원",null,9,"숫자만 입력합니다."]
["교육대상작업",null,null,null,null,{"$f":"AF8","v":"1. 고압실 내 작업"},null,null,null,null,null,null,null,null,null,null,null,null,null,null,null,null,null,null,null,null,null,null,{"$f":"'DB2'!#REF!","v":{"$error":"#REF!"}},"추가교육예정일",null,45327,"날짜를 (mm-dd)형태로 입력합니다. (없으면 비워둡니다.)"]
["교육대상",null,null,null,null,{"$f":"AF9","v":"라. 관리감독자 (특별교육 / 단기간 또는 간헐적작업)"},null,null,null,null,null,null,null,null,null,null,null,null,null,null,null,null,null,null,null,null,null,null,{"$f":"'DB2'!#REF!","v":{"$error":"#REF!"}},"공종 혹은 협력업체",null,"창호","선택합니다."]
["교육명",null,null,null,null,{"$f":"'DB1'!C3","v":"라. 특별교육"},null,null,null,null,null,null,null,null,"법정교육시간",null,null,null,null,{"$f":"IF(AL9='DB1'!A83,'DB1'!D83,IF('특별교육 (관리감독자)'!AL9='DB1'!A84,'DB1'!D84,0))","v":"2시간 이상"},null,null,null,null,null,null,null,null,{"$f":"'DB2'!#REF!","v":{"$error":"#REF!"}},null,null,"비계","선택합니다. 추가할 공종이 없으면 Del 키를 누릅니다."]
["대상작업명",null,null,null,null,{"$f":"'DB2'!B4","v":"1. 고압실 내 작업(잠함공법이나 그 밖의 압기공법으로 대기압을 넘는 기압인 작업실  또는 수갱\n    내부에서 하는 작업만 해당한다)"},null,null,null,null,null,null,null,null,null,null,null,null,null,null,null,null,null,null,null,null,null,null,{"$f":"'DB2'!#REF!","v":{"$error":"#REF!"}},null,null,null,"선택합니다. 추가할 공종이 없으면 Del 키를 누릅니다."]
[null,null,null,null,null,null,null,null,null,null,null,null,null,null,null,null,null,null,null,null,null,null,null,null,null,null,null,null,null,null,null,null,"선택합니다. 추가할 공종이 없으면 Del 키를 누릅니다."]
[null,null,null,null,null,null,null,null,null,null,null,null,null,null,null,null,null,null,null,null,null,null,null,null,null,null,null,null,null,null,null,null,"선택합니다. 추가할 공종이 없으면 Del 키를 누릅니다."]
[null,null,null,null,null,null,null,null,null,null,null,null,null,null,null,null,null,null,null,null,null,null,null,null,null,null,null,null,null,"1회차 \n교육","법정교육시간",{"$f":"T15","v":"2시간 이상"},"◀ 대상작업 법정 교육시간입니다."]
[null,null,null,null,null,null,null,null,null,null,null,null,null,null,null,null,null,null,null,null,null,null,null,null,null,null,null,null,null,null,"교육시간",2,"숫자만 입력합니다. (노란 테두리 내 법정교육시간을 참고합니다.)"]
["교육내용",null,null,"공통\n내용",null,{"$f":"'DB2'!C13","v":"산업안전 및 사고 예방에 관한 사항"},null,null,null,null,null,null,null,null,null,null,null,null,null,null,null,null,null,null,null,null,null,null,null,null,"시작시간",0.29166666666666702,"선택합니다."]
[null,null,null,null,null,{"$f":"'DB2'!C14","v":"산업보건 및 직업병 예방에 관한 사항"},null,null,null,null,null,null,null,null,null,null,null,null,null,null,null,null,null,null,null,null,null,null,null,"2회차\n교육","법정교육시간",{"$f":"T15","v":"2시간 이상"},"◀ 대상작업 법정 교육 시간입니다."]
[null,null,null,null,null,{"$f":"'DB2'!C15","v":"산업안전보건법령 및 산업재해보상보험 제도에 관한 사항"},null,null,null,null,null,null,null,null,null,null,null,null,null,null,null,null,null,null,null,null,null,null,null,null,"교육시간",2,"숫자만 입력합니다. (노란 테두리 내 법정교육시간을 참고합니다.)"]
[null,null,null,null,null,{"$f":"'DB2'!C16","v":"직무스트레스 예방 및 관리에 관한 사항"},null,null,null,null,null,null,null,null,null,null,null,null,null,null,null,null,null,null,null,null,null,null,null,null,"시작시간",0.45833333333333298,"선택합니다."]
[null,null,null,null,null,{"$f":"'DB2'!C17","v":"기계·기구의 위험성과 작업의 순서 및 동선에 관한 사항"},null,null,null,null,null,null,null,null,null,null,null,null,null,null,null,null,null,null,null,null,null,null,null,"교육방법",null,"동영상+교재","선택합니다."]
[null,null,null,null,null,{"$f":"'DB2'!C18","v":"작업 개시 전 점검에 관한 사항"},null,null,null,null,null,null,null,null,null,null,null,null,null,null,null,null,null,null,null,null,null,null,null,"사용교재",null,"안전보건공단 자료외","입력합니다."]
[null,null,null,null,null,{"$f":"'DB2'!C19","v":"정리정돈 및 청소에 관한 사항"},null,null,null,null,null,null,null,null,null,null,null,null,null,null,null,null,null,null,null,null,null,null,null,"교육강사",null,"감리원","선택합니다."]
[null,null,null,null,null,{"$f":"'DB2'!C20","v":"사고 발생 시 긴급조치에 관한 사항"},null,null,null,null,null,null,null,null,null,null,null,null,null,null,null,null,null,null,null,null,null,null,null,"교육장소",null,"교육장","선택합니다."]
[null,null,null,null,null,{"$f":"'DB2'!C21","v":0}]
[null,null,null,null,null,{"$f":"'DB2'!C22","v":0}]
[null,null,null,"개별\n내용",null,{"$f":"'DB2'!B7","v":"작업의 시간·작업 방법 및 절차에 관한 사항"}]
[null,null,null,null,null,{"$f":"'DB2'!B8","v":"압기공법에 관한 기초지식 및 보호구 착용에 관한 사항"}]
[null,null,null,null,null,{"$f":"'DB2'!B9","v":"이상 발생 시 응급조치에 관한 사항"}]
[null,null,null,null,null,{"$f":"'DB2'!B10","v":"그 밖에 안전·보건관리에 필요한 사항"}]
[null,null,null,null,null,{"$f":"'DB2'!B11","v":""}]
[null,null,null,null,null,{"$f":"'DB2'!B12","v":""}]
[]
[]
["안전교육 참석자 명단"]
["이    름",null,null,null,null,"서  명",null,null,null,"이    름",null,null,null,null,"서  명",null,null,null,"이    름",null,null,null,null,"서  명"]
[1,null,null,null,null,null,null,null,null,26,null,null,null,null,null,null,null,null,51]
[2,null,null,null,null,null,null,null,null,27,null,null,null,null,null,null,null,null,52]
[3,null,null,null,null,null,null,null,null,28,null,null,null,null,null,null,null,null,53]
[4,null,null,null,null,null,null,null,null,29,null,null,null,null,null,null,null,null,54]
[5,null,null,null,null,null,null,null,null,30,null,null,null,null,null,null,null,null,55]
[6,null,null,null,null,null,null,null,null,31,null,null,null,null,null,null,null,null,56]
[7,null,null,null,null,null,null,null,null,32,null,null,null,null,null,null,null,null,57]
[8,null,null,null,null,null,null,null,null,33,null,null,null,null,null,null,null,null,58]
[9,null,null,null,null,null,null,null,null,34,null,null,null,null,null,null,null,null,59]
[10,null,null,null,null,null,null,null,null,35,null,null,null,null,null,null,null,null,60]
[11,null,null,null,null,null,null,null,null,36,null,null,null,null,null,null,null,null,61]
[12,null,null,null,null,null,null,null,null,37,null,null,null,null,null,null,null,null,62]
[13,null,null,null,null,null,null,null,null,38,null,null,null,null,null,null,null,null,63]
[14,null,null,null,null,null,null,null,null,39,null,null,null,null,null,null,null,null,64]
[15,null,null,null,null,null,null,null,null,40,null,null,null,null,null,null,null,null,65]
[16,null,null,null,null,null,null,null,null,41,null,null,null,null,null,null,null,null,66]
[17,null,null,null,null,null,null,null,null,42,null,null,null,null,null,null,null,null,67]
[18,null,null,null,null,null,null,null,null,43,null,null,null,null,null,null,null,null,68]
[19,null,null,null,null,null,null,null,null,44,null,null,null,null,null,null,null,null,69]
[20,null,null,null,null,null,null,null,null,45,null,null,null,null,null,null,null,null,70]
[21,null,null,null,null,null,null,null,null,46,null,null,null,null,null,null,null,null,71]
[22,null,null,null,null,null,null,null,null,47,null,null,null,null,null,null,null,null,72]
[23,null,null,null,null,null,null,null,null,48,null,null,null,null,null,null,null,null,73]
[24,null,null,null,null,null,null,null,null,49,null,null,null,null,null,null,null,null,74]
[25,null,null,null,null,null,null,null,null,50,null,null,null,null,null,null,null,null,75]

{"sheet":"특별교육","index":3,"n_rows":65,"n_cols":38,"rows_kept":65,"cut":false,"hidden":false,"merged":[[9,0,9,4],[9,5,9,13],[9,14,9,18],[9,19,9,27],[12,0,12,4],[27,29,27,30],[10,0,10,4],[10,5,10,9],[10,10,10,11],[10,12,10,14],[10,16,10,18],[10,19,10,20],[10,21,10,23],[10,25,10,27],[11,0,11,4],[11,5,11,9],[11,10,11,13],[11,14,11,18],[11,19,11,27],[25,29,25,30],[26,29,26,30],[14,0,14,4],[14,5,14,13],[14,14,14,18],[13,0,13,4],[13,5,13,27],[15,0,19,4],[15,5,19,27],[64,1,64,4],[64,5,64,8],[64,10,64,13],[64,14,64,17],[64,19,64,22],[64,23,64,27],[62,1,62,4],[62,5,62,8],[62,10,62,13],[62,14,62,17],[62,19,62,22],[62,23,62,27],[63,1,63,4],[63,5,63,8],[63,10,63,13],[63,14,63,17],[63,19,63,22],[63,23,63,27],[60,1,60,4],[60,5,60,8],[60,10,60,13],[60,14,60,17],[60,19,60,22],[60,23,60,27],[61,1,61,4],[61,5,61,8],[61,10,61,13],[61,14,61,17],[61,19,61,22],[61,23,61,27],[58,1,58,4],[58,5,58,8],[58,10,58,13],[58,14,58,17],[58,19,58,22],[58,23,58,27],[59,1,59,4],[59,5,59,8],[59,10,59,13],[59,14,59,17],[59,19,59,22],[59,23,59,27],[56,1,56,4],[56,5,56,8],[56,10,56,13],[56,14,56,17],[56,19,56,22],[56,23,56,27],[57,1,57,4],[57,5,57,8],[57,10,57,13],[57,14,57,17],[57,19,57,22],[57,23,57,27],[54,1,54,4],[54,5,54,8],[54,10,54,13],[54,14,54,17],[54,19,54,22],[54,23,54,27],[55,1,55,4],[55,5,55,8],[55,10,55,13],[55,14,55,17],[55,19,55,22],[55,23,55,27],[52,1,52,4],[52,5,52,8],[52,10,52,13],[52,14,52,17],[52,19,52,22],[52,23,52,27],[53,1,53,4],[53,5,53,8],[53,10,53,13],[53,14,53,17],[53,19,53,22],[53,23,53,27],[12,5,12,27],[3,30,4,30],[8,28,9,28],[3,22,3,24],[4,22,5,24],[6,5,6,8],[6,9,6,12],[6,13,6,16],[6,17,6,20],[6,21,6,24],[6,25,6,27],[7,5,7,13],[7,14,7,18],[7,19,7,27],[8,5,8,13],[8,14,8,18],[8,19,8,27],[8,29,8,30],[33,5,33,27],[34,5,34,27],[35,5,35,27],[7,0,7,4],[8,0,8,4],[36,5,36,27],[7,31,7,32],[7,29,7,30],[9,29,9,30],[10,29,10,30],[25,5,25,27],[24,5,24,27],[23,5,23,27],[22,5,22,27],[21,5,21,27],[20,5,20,27],[18,29,20,29],[21,29,23,29],[24,29,24,30],[11,29,11,30],[12,29,12,30],[13,29,17,30],[8,31,8,32],[14,19,14,27],[40,5,40,8],[39,18,39,22],[39,9,39,13],[39,0,39,4],[39,23,39,27],[39,14,39,17],[6,0,6,4],[28,5,28,27],[0,0,0,27],[5,0,5,4],[1,0,1,27],[3,25,3,27],[4,25,5,27],[2,0,2,27],[3,18,5,18],[3,19,3,21],[4,19,5,21],[3,0,4,17],[5,5,5,17],[20,3,29,4],[29,5,29,27],[20,0,37,2],[30,5,30,27],[32,5,32,27],[37,5,37,27],[31,5,31,27],[27,5,27,27],[26,5,26,27],[41,5,41,8],[41,14,41,17],[41,23,41,27],[42,5,42,8],[42,14,42,17],[42,23,42,27],[40,14,40,17],[40,23,40,27],[38,0,38,27],[30,3,37,4],[42,1,42,4],[41,1,41,4],[41,10,41,13],[42,10,42,13],[41,19,41,22],[42,19,42,22],[40,1,40,4],[40,10,40,13],[40,19,40,22],[39,5,39,8],[44,10,44,13],[44,19,44,22],[43,5,43,8],[43,14,43,17],[43,23,43,27],[44,5,44,8],[44,14,44,17],[44,23,44,27],[43,1,43,4],[43,10,43,13],[43,19,43,22],[44,1,44,4],[47,1,47,4],[47,10,47,13],[47,19,47,22],[45,5,45,8],[45,14,45,17],[45,23,45,27],[46,5,46,8],[46,14,46,17],[46,23,46,27],[46,1,46,4],[45,1,45,4],[45,10,45,13],[46,10,46,13],[45,19,45,22],[46,19,46,22],[47,5,47,8],[47,14,47,17],[47,23,47,27],[49,5,49,8],[49,14,49,17],[49,23,49,27],[48,1,48,4],[48,5,48,8],[48,10,48,13],[48,14,48,17],[48,19,48,22],[48,23,48,27],[49,1,49,4],[49,10,49,13],[49,19,49,22],[50,1,50,4],[50,5,50,8],[50,10,50,13],[50,14,50,17],[50,19,50,22],[50,23,50,27],[51,1,51,4],[51,5,51,8],[51,10,51,13],[51,14,51,17],[51,19,51,22],[51,23,51,27]]}
["특별 안전보건교육일지"]
[{"$f":"'DB1'!E3","v":" 산업안전보건법 제29조제3항 (유해위험작업 채용시 및 작업내용 변경시 안전보건교육)"}]
["관련근거 : 산업안전보건법 제77조 (특수형태근로종사자에 대한 안전조치 및 보건조치 등)"]
[{"$f":"목차!C12","v":"OOO 출입구 설치공사"},null,null,null,null,null,null,null,null,null,null,null,null,null,null,null,null,null,"결 재",null,null,null,"안전관리자",null,null,"현장대리인"]
[]
["교육일자",null,null,null,null,{"$f":"IF(AF10>0,AF10,\"\")","v":45321}]
["공종",null,null,null,null,{"$f":"AF14","v":"창호"},null,null,null,{"$f":"AF15","v":"비계"},null,null,null,{"$f":"AF16","v":0},null,null,null,{"$f":"AF17","v":0},null,null,null,{"$f":"AF18","v":0},null,null,null,null,null,null,{"$f":"'DB2'!#REF!","v":{"$error":"#REF!"}},null,null,null,null,null,null,null,null,{"$f":"AL8+AL9","v":3}]
["교육대상인원",null,null,null,null,{"$f":"AF11","v":10},null,null,null,null,null,null,null,null,"금회실시인원",null,null,null,null,{"$f":"AF12","v":9},null,null,null,null,null,null,null,null,{"$f":"'DB2'!#REF!","v":{"$error":"#REF!"}},"교육대상작업명",null,"1. 고압실 내 작업",null,"특별교육명을 선택합니다.",null,null,null,{"$f":"IF(AF8='DB1'!B61,'DB1'!A80,'DB1'!A81)","v":2}]
["미실시인원",null,null,null,null,{"$f":"F8-T8","v":1},null,null,null,null,null,null,null,null,"추가교육예정일",null,null,null,null,{"$f":"IF(AF13>0,AF13,\"\")","v":45327},null,null,null,null,null,null,null,null,{"$f":"'DB2'!#REF!","v":{"$error":"#REF!"}},"교육대상",null,"2) 일용근로자 및 근로계약기간이 1주일 이하인 기간제근로자를 제외한 근로자",null,"교육대상 근로자를 선택합니다.",null,null,null,{"$f":"IF(AF9='DB1'!B77,'DB1'!A77,IF(특별교육!AF9='DB1'!B78,'DB1'!A78,IF(특별교육!AF9='DB1'!B79,'DB1'!A79,0)))","v":1}]
["교육방법",null,null,null,null,{"$f":"AF25","v":"동영상+교재"},null,null,null,null,null,null,null,null,"사용교재",null,null,null,null,{"$f":"AF26","v":"안전보건공단 자료외"},null,null,null,null,null,null,null,null,null,"교육일시",null,45321,"입력합니다 (mm-dd 형식으로)"]
["교육시간",null,null,null,null,{"$f":"AF20+AF23","v":4},null,null,null,null,"1회차",null,{"$f":"AF21","v":0.29166666666666702},null,null,"~",{"$f":"AF21+TIME(AF20,,)","v":0.37500000000000033},null,null,"2회차",null,{"$f":"AF24","v":0.45833333333333298},null,null,"~",{"$f":"AF24+TIME(AF23,,)","v":0.5416666666666663},null,null,{"$f":"'DB2'!#REF!","v":{"$error":"#REF!"}},"교육대상",null,10,"숫자만 입력합니다."]
["교육강사",null,null,null,null,{"$f":"AF27","v":"감리단장"},null,null,null,null,{"$f":"INDEX(목차!G14:G19,MATCH(AF27,목차!F14:F19,0))","v":"이 단 장"},null,null,null,"교육장소",null,null,null,null,{"$f":"AF28","v":"교육장"},null,null,null,null,null,null,null,null,{"$f":"'DB2'!#REF!","v":{"$error":"#REF!"}},"금회 교육실시인원",null,9,"숫자만 입력합니다."]
["교육대상작업",null,null,null,null,{"$f":"AF8","v":"1. 고압실 내 작업"},null,null,null,null,null,null,null,null,null,null,null,null,null,null,null,null,null,null,null,null,null,null,{"$f":"'DB2'!#REF!","v":{"$error":"#REF!"}},"추가교육예정일",null,45327,"날짜를 (mm-dd)형태로 입력합니다. (없으면 비워둡니다.)"]
["교육대상",null,null,null,null,{"$f":"AF9","v":"2) 일용근로자 및 근로계약기간이 1주일 이하인 기간제근로자를 제외한 근로자"},null,null,null,null,null,null,null,null,null,null,null,null,null,null,null,null,null,null,null,null,null,null,{"$f":"'DB2'!#REF!","v":{"$error":"#REF!"}},"공종 혹은 협력업체",null,"창호","선택합니다."]
["교육명",null,null,null,null,{"$f":"'DB1'!C3","v":"라. 특별교육"},null,null,null,null,null,null,null,null,"법정교육시간",null,null,null,null,{"$f":"IF(AL9='DB1'!A78,'DB1'!D78,IF(특별교육!AL9='DB1'!A79,'DB1'!D79,IF(특별교육!AL7='DB1'!A76,'DB1'!D76,IF(특별교육!AL7='DB1'!A75,'DB1'!D75,0))))","v":"16시간 이상"},null,null,null,null,null,null,null,null,{"$f":"'DB2'!#REF!","v":{"$error":"#REF!"}},null,null,"비계","선택합니다. 추가할 공종이 없으면 Del 키를 누릅니다."]
["대상작업명",null,null,null,null,{"$f":"'DB2'!C4","v":"1. 고압실 내 작업(잠함공법이나 그 밖의 압기공법으로 대기압을 넘는 기압인 작업실  또는 수갱\n    내부에서 하는 작업만 해당한다)"},null,null,null,null,null,null,null,null,null,null,null,null,null,null,null,null,null,null,null,null,null,null,{"$f":"'DB2'!#REF!","v":{"$error":"#REF!"}},null,null,null,"선택합니다. 추가할 공종이 없으면 Del 키를 누릅니다."]
[null,null,null,null,null,null,null,null,null,null,null,null,null,null,null,null,null,null,null,null,null,null,null,null,null,null,null,null,null,null,null,null,"선택합니다. 추가할 공종이 없으면 Del 키를 누릅니다."]
[null,null,null,null,null,null,null,null,null,null,null,null,null,null,null,null,null,null,null,null,null,null,null,null,null,null,null,null,null,null,null,null,"선택합니다. 추가할 공종이 없으면 Del 키를 누릅니다."]
[null,null,null,null,null,null,null,null,null,null,null,null,null,null,null,null,null,null,null,null,null,null,null,null,null,null,null,null,null,"1회차 \n교육","법정교육시간",{"$f":"T15","v":"16시간 이상"},"◀ 대상작업 법정 교육시간입니다."]
[null,null,null,null,null,null,null,null,null,null,null,null,null,null,null,null,null,null,null,null,null,null,null,null,null,null,null,null,null,null,"교육시간",2,"숫자만 입력합니다. (노란 테두리 내 법정교육시간을 참고합니다.)"]
["교육내용",null,null,"공통\n내용",null,{"$f":"'DB2'!C13","v":"산업안전 및 사고 예방에 관한 사항"},null,null,null,null,null,null,null,null,null,null,null,null,null,null,null,null,null,null,null,null,null,null,null,null,"시작시간",0.29166666666666702,"선택합니다."]
[null,null,null,null,null,{"$f":"'DB2'!C14","v":"산업보건 및 직업병 예방에 관한 사항"},null,null,null,null,null,null,null,null,null,null,null,null,null,null,null,null,null,null,null,null,null,null,null,"2회차\n교육","법정교육시간",{"$f":"T15","v":"16시간 이상"},"◀ 대상작업 법정 교육 시간입니다."]
[null,null,null,null,null,{"$f":"'DB2'!C15","v":"산업안전보건법령 및 산업재해보상보험 제도에 관한 사항"},null,null,null,null,null,null,null,null,null,null,null,null,null,null,null,null,null,null,null,null,null,null,null,null,"교육시간",2,"숫자만 입력합니다. (노란 테두리 내 법정교육시간을 참고합니다.)"]
[null,null,null,null,null,{"$f":"'DB2'!C16","v":"직무스트레스 예방 및 관리에 관한 사항"},null,null,null,null,null,null,null,null,null,null,null,null,null,null,null,null,null,null,null,null,null,null,null,null,"시작시간",0.45833333333333298,"선택합니다."]
[null,null,null,null,null,{"$f":"'DB2'!C17","v":"기계·기구의 위험성과 작업의 순서 및 동선에 관한 사항"},null,null,null,null,null,null,null,null,null,null,null,null,null,null,null,null,null,null,null,null,null,null,null,"교육방법",null,"동영상+교재","선택합니다."]
[null,null,null,null,null,{"$f":"'DB2'!C18","v":"작업 개시 전 점검에 관한 사항"},null,null,null,null,null,null,null,null,null,null,null,null,null,null,null,null,null,null,null,null,null,null,null,"사용교재",null,"안전보건공단 자료외","입력합니다."]
[null,null,null,null,null,{"$f":"'DB2'!C19","v":"정리정돈 및 청소에 관한 사항"},null,null,null,null,null,null,null,null,null,null,null,null,null,null,null,null,null,null,null,null,null,null,null,"교육강사",null,"감리단장","선택합니다."]
[null,null,null,null,null,{"$f":"'DB2'!C20","v":"사고 발생 시 긴급조치에 관한 사항"},null,null,null,null,null,null,null,null,null,null,null,null,null,null,null,null,null,null,null,null,null,null,null,"교육장소",null,"교육장","선택합니다."]
[null,null,null,null,null,{"$f":"'DB2'!C21","v":0}]
[null,null,null,null,null,{"$f":"'DB2'!C22","v":0}]
[null,null,null,"개별\n내용",null,{"$f":"'DB2'!C6","v":"고기압 장해의 인체에 미치는 영향에 관한 사항"}]
[null,null,null,null,null,{"$f":"'DB2'!C7","v":"작업의 시간·작업 방법 및 절차에 관한 사항"}]
[null,null,null,null,null,{"$f":"'DB2'!C8","v":"압기공법에 관한 기초지식 및 보호구 착용에 관한 사항"}]
[null,null,null,null,null,{"$f":"'DB2'!C9","v":"이상 발생 시 응급조치에 관한 사항"}]
[null,null,null,null,null,{"$f":"'DB2'!C10","v":"그 밖에 안전·보건관리에 필요한 사항"}]
[null,null,null,null,null,{"$f":"'DB2'!C11","v":""}]
[null,null,null,null,null,{"$f":"'DB2'!C12","v":""}]
[]
["안전교육 참석자 명단"]
["이    름",null,null,null,null,"서  명",null,null,null,"이    름",null,null,null,null,"서  명",null,null,null,"이    름",null,null,null,null,"서  명"]
[1,null,null,null,null,null,null,null,null,26,null,null,null,null,null,null,null,null,51]
[2,null,null,null,null,null,null,null,null,27,null,null,null,null,null,null,null,null,52]
[3,null,null,null,null,null,null,null,null,28,null,null,null,null,null,null,null,null,53]
[4,null,null,null,null,null,null,null,null,29,null,null,null,null,null,null,null,null,54]
[5,null,null,null,null,null,null,null,null,30,null,null,null,null,null,null,null,null,55]
[6,null,null,null,null,null,null,null,null,31,null,null,null,null,null,null,null,null,56]
[7,null,null,null,null,null,null,null,null,32,null,null,null,null,null,null,null,null,57]
[8,null,null,null,null,null,null,null,null,33,null,null,null,null,null,null,null,null,58]
[9,null,null,null,null,null,null,null,null,34,null,null,null,null,null,null,null,null,59]
[10,null,null,null,null,null,null,null,null,35,null,null,null,null,null,null,null,null,60]
[11,null,null,null,null,null,null,null,null,36,null,null,null,null,null,null,null,null,61]
[12,null,null,null,null,null,null,null,null,37,null,null,null,null,null,null,null,null,62]
[13,null,null,null,null,null,null,null,null,38,null,null,null,null,null,null,null,null,63]
[14,null,null,null,null,null,null,null,null,39,null,null,null,null,null,null,null,null,64]
[15,null,null,null,null,null,null,null,null,40,null,null,null,null,null,null,null,null,65]
[16,null,null,null,null,null,null,null,null,41,null,null,null,null,null,null,null,null,66]
[17,null,null,null,null,null,null,null,null,42,null,null,null,null,null,null,null,null,67]
[18,null,null,null,null,null,null,null,null,43,null,null,null,null,null,null,null,null,68]
[19,null,null,null,null,null,null,null,null,44,null,null,null,null,null,null,null,null,69]
[20,null,null,null,null,null,null,null,null,45,null,null,null,null,null,null,null,null,70]
[21,null,null,null,null,null,null,null,null,46,null,null,null,null,null,null,null,null,71]
[22,null,null,null,null,null,null,null,null,47,null,null,null,null,null,null,null,null,72]
[23,null,null,null,null,null,null,null,null,48,null,null,null,null,null,null,null,null,73]
[24,null,null,null,null,null,null,null,null,49,null,null,null,null,null,null,null,null,74]
[25,null,null,null,null,null,null,null,null,50,null,null,null,null,null,null,null,null,75]

{"sheet":"특별교육 2종","index":4,"n_rows":65,"n_cols":38,"rows_kept":65,"cut":false,"hidden":false,"merged":[[20,3,28,4],[64,1,64,4],[64,5,64,8],[64,10,64,13],[64,14,64,17],[64,19,64,22],[64,23,64,27],[63,1,63,4],[63,5,63,8],[63,10,63,13],[63,14,63,17],[63,19,63,22],[63,23,63,27],[62,1,62,4],[62,5,62,8],[62,10,62,13],[62,14,62,17],[62,19,62,22],[62,23,62,27],[61,1,61,4],[61,5,61,8],[61,10,61,13],[61,14,61,17],[61,19,61,22],[61,23,61,27],[60,1,60,4],[60,5,60,8],[60,10,60,13],[60,14,60,17],[60,19,60,22],[60,23,60,27],[59,1,59,4],[59,5,59,8],[59,10,59,13],[59,14,59,17],[59,19,59,22],[59,23,59,27],[58,1,58,4],[58,5,58,8],[58,10,58,13],[58,14,58,17],[58,19,58,22],[58,23,58,27],[57,1,57,4],[57,5,57,8],[57,10,57,13],[57,14,57,17],[57,19,57,22],[57,23,57,27],[56,1,56,4],[56,5,56,8],[56,10,56,13],[56,14,56,17],[56,19,56,22],[56,23,56,27],[55,1,55,4],[55,5,55,8],[55,10,55,13],[55,14,55,17],[55,19,55,22],[55,23,55,27],[54,1,54,4],[54,5,54,8],[54,10,54,13],[54,14,54,17],[54,19,54,22],[54,23,54,27],[53,1,53,4],[53,5,53,8],[53,10,53,13],[53,14,53,17],[53,19,53,22],[53,23,53,27],[52,1,52,4],[52,5,52,8],[52,10,52,13],[52,14,52,17],[52,19,52,22],[52,23,52,27],[51,1,51,4],[51,5,51,8],[51,10,51,13],[51,14,51,17],[51,19,51,22],[51,23,51,27],[50,1,50,4],[50,5,50,8],[50,10,50,13],[50,14,50,17],[50,19,50,22],[50,23,50,27],[49,1,49,4],[49,5,49,8],[49,10,49,13],[49,14,49,17],[49,19,49,22],[49,23,49,27],[48,1,48,4],[48,5,48,8],[48,10,48,13],[48,14,48,17],[48,19,48,22],[48,23,48,27],[47,1,47,4],[47,5,47,8],[47,10,47,13],[47,14,47,17],[47,19,47,22],[47,23,47,27],[46,1,46,4],[46,5,46,8],[46,10,46,13],[46,14,46,17],[46,19,46,22],[46,23,46,27],[45,1,45,4],[45,5,45,8],[45,10,45,13],[45,14,45,17],[45,19,45,22],[45,23,45,27],[44,1,44,4],[44,5,44,8],[44,10,44,13],[44,14,44,17],[44,19,44,22],[44,23,44,27],[43,1,43,4],[43,5,43,8],[43,10,43,13],[43,14,43,17],[43,19,43,22],[43,23,43,27],[42,1,42,4],[42,5,42,8],[42,10,42,13],[42,14,42,17],[42,19,42,22],[42,23,42,27],[41,1,41,4],[41,5,41,8],[41,10,41,13],[41,14,41,17],[41,19,41,22],[41,23,41,27],[40,1,40,4],[40,5,40,8],[40,10,40,13],[40,14,40,17],[40,19,40,22],[40,23,40,27],[35,5,35,27],[36,5,36,27],[37,5,37,27],[38,0,38,27],[39,0,39,4],[39,5,39,8],[39,9,39,13],[39,14,39,17],[39,18,39,22],[39,23,39,27],[29,3,37,4],[24,5,24,27],[24,29,24,30],[25,5,25,27],[25,29,25,30],[26,5,26,27],[26,29,26,30],[15,0,19,4],[15,5,19,27],[18,29,20,29],[20,0,37,2],[20,5,20,27],[21,5,21,27],[21,29,23,29],[22,5,22,27],[23,5,23,27],[27,5,27,27],[27,29,27,30],[28,5,28,27],[29,5,29,27],[30,5,30,27],[31,5,31,27],[32,5,32,27],[33,5,33,27],[34,5,34,27],[12,0,12,4],[12,5,12,27],[12,29,12,30],[13,0,13,4],[13,5,13,27],[13,29,17,30],[14,0,14,4],[14,5,14,13],[14,14,14,18],[14,19,14,27],[10,25,10,27],[10,29,10,30],[11,0,11,4],[11,5,11,9],[11,10,11,13],[11,14,11,18],[11,19,11,27],[11,29,11,30],[9,14,9,18],[9,19,9,27],[9,29,9,30],[10,0,10,4],[10,5,10,9],[10,10,10,11],[10,12,10,14],[10,16,10,18],[10,19,10,20],[10,21,10,23],[7,31,7,32],[8,0,8,4],[8,5,8,13],[8,14,8,18],[8,19,8,27],[8,28,9,28],[8,29,8,30],[8,31,8,32],[9,0,9,4],[9,5,9,13],[6,25,6,27],[7,0,7,4],[7,5,7,13],[7,14,7,18],[7,19,7,27],[7,29,7,30],[6,0,6,4],[6,5,6,8],[6,9,6,12],[6,13,6,16],[6,17,6,20],[6,21,6,24],[3,30,4,30],[4,19,5,21],[4,22,5,24],[4,25,5,27],[5,0,5,4],[5,5,5,17],[0,0,0,27],[1,0,1,27],[2,0,2,27],[3,0,4,17],[3,18,5,18],[3,19,3,21],[3,22,3,24],[3,25,3,27]]}
["특별 안전보건교육일지"]
[{"$f":"'DB1'!E4","v":" 산업안전보건법 제29조제3항 (유해위험작업 채용시 및 작업내용 변경시 안전보건교육)"}]
["관련근거 : 산업안전보건법 제77조 (특수형태근로종사자에 대한 안전조치 및 보건조치 등)"]
[{"$f":"목차!C12","v":"OOO 출입구 설치공사"},null,null,null,null,null,null,null,null,null,null,null,null,null,null,null,null,null,"결 재",null,null,null,"안전관리자",null,null,"현장대리인"]
[]
["교육일자",null,null,null,null,{"$f":"IF(AF10>0,AF10,\"\")","v":45320}]
["공종",null,null,null,null,{"$f":"AF14","v":"창호"},null,null,null,{"$f":"AF15","v":"비계"},null,null,null,{"$f":"AF16","v":0},null,null,null,{"$f":"AF17","v":0},null,null,null,{"$f":"AF18","v":"공종3"},null,null,null,null,null,null,{"$f":"'DB2'!#REF!","v":{"$error":"#REF!"}},null,null,null,null,null,null,null,null,{"$f":"AL8+AL9","v":2}]
["교육대상인원",null,null,null,null,{"$f":"AF11","v":10},null,null,null,null,null,null,null,null,"금회실시인원",null,null,null,null,{"$f":"AF12","v":4},null,null,null,null,null,null,null,null,{"$f":"'DB2'!#REF!","v":{"$error":"#REF!"}},"교육대상작업명",null,"(2+38) 아세틸렌 용접장치 또는 가스집합 용접장치+가연물이 있는 장소에서 하는 화재위험 작업",null,"특별교육 2종을 선택합니다.",null,null,null,{"$f":"IF(AF8='DB1'!B61,'DB1'!A80,'DB1'!A81)","v":2}]
["미실시인원",null,null,null,null,{"$f":"F8-T8","v":6},null,null,null,null,null,null,null,null,"추가교육예정일",null,null,null,null,{"$f":"AF13","v":45327},null,null,null,null,null,null,null,null,{"$f":"'DB2'!#REF!","v":{"$error":"#REF!"}},"교육대상",null,"3) 일용근로자 및 근로계약기간이 1주일 이하인 기간제근로자를 제외한 근로자 (단기간 또는 간헐적 작업)",null,"교육대상 근로자를 선택합니다.",null,null,null,{"$f":"IF(AF9='DB1'!B88,'DB1'!A88,IF(특별교육!AF9='DB1'!B89,'DB1'!A89,0))","v":0}]
["교육방법",null,null,null,null,{"$f":"AF25","v":"동영상+교재"},null,null,null,null,null,null,null,null,"사용교재",null,null,null,null,{"$f":"AF26","v":"안전보건공단 자료외"},null,null,null,null,null,null,null,null,null,"교육일시",null,45320,"입력합니다 (mm-dd 형식으로)"]
["교육시간",null,null,null,null,{"$f":"AF20+AF23","v":7},null,null,null,null,"1회차",null,{"$f":"AF21","v":0.29166666666666702},null,null,"~",{"$f":"AF21+TIME(AF20,,)","v":0.4583333333333337},null,null,"2회차",null,{"$f":"AF24","v":0.54166666666666663},null,null,"~",{"$f":"AF24+TIME(AF23,,)","v":0.66666666666666663},null,null,{"$f":"'DB2'!#REF!","v":{"$error":"#REF!"}},"교육대상",null,10,"숫자만 입력합니다."]
["교육강사",null,null,null,null,{"$f":"AF27","v":"현장대리인"},null,null,null,null,{"$f":"INDEX(목차!G14:G19,MATCH(AF27,목차!F14:F19,0))","v":"김 현 장"},null,null,null,"교육장소",null,null,null,null,{"$f":"AF28","v":"교육장"},null,null,null,null,null,null,null,null,{"$f":"'DB2'!#REF!","v":{"$error":"#REF!"}},"금회 교육실시인원",null,4,"숫자만 입력합니다."]
["교육대상작업",null,null,null,null,{"$f":"AF8","v":"(2+38) 아세틸렌 용접장치 또는 가스집합 용접장치+가연물이 있는 장소에서 하는 화재위험 작업"},null,null,null,null,null,null,null,null,null,null,null,null,null,null,null,null,null,null,null,null,null,null,{"$f":"'DB2'!#REF!","v":{"$error":"#REF!"}},"추가교육예정일",null,45327,"날짜를 (mm-dd)형태로 입력합니다. (예: 12-30)"]
["교육대상",null,null,null,null,{"$f":"AF9","v":"3) 일용근로자 및 근로계약기간이 1주일 이하인 기간제근로자를 제외한 근로자 (단기간 또는 간헐적 작업)"},null,null,null,null,null,null,null,null,null,null,null,null,null,null,null,null,null,null,null,null,null,null,{"$f":"'DB2'!#REF!","v":{"$error":"#REF!"}},"공종 혹은 협력업체",null,"창호","선택합니다."]
["교육명",null,null,null,null,{"$f":"'DB1'!C4","v":"라. 특별교육 2종"},null,null,null,null,null,null,null,null,"법정교육시간",null,null,null,null,{"$f":"IF(AL9='DB1'!A88,'DB1'!D88,IF(특별교육!AL9='DB1'!A89,'DB1'!D89,IF(특별교육!AL7='DB1'!A87,'DB1'!D87,IF(특별교육!AL7='DB1'!A86,'DB1'!D86,0))))","v":"(2+2) 4시간 이상"},null,null,null,null,null,null,null,null,{"$f":"'DB2'!#REF!","v":{"$error":"#REF!"}},null,null,"비계","선택합니다. 추가할 공종이 없으면 Del 키를 누릅니다."]
["대상작업명",null,null,null,null,{"$f":"'DB2'!D4","v":"2. 아세틸렌 용접장치 또는 가스집합 용접장치\n38. 가연물이 있는 장소에서 하는 화재위험작업"},null,null,null,null,null,null,null,null,null,null,null,null,null,null,null,null,null,null,null,null,null,null,{"$f":"'DB2'!#REF!","v":{"$error":"#REF!"}},null,null,null,"선택합니다. 추가할 공종이 없으면 Del 키를 누릅니다."]
[null,null,null,null,null,null,null,null,null,null,null,null,null,null,null,null,null,null,null,null,null,null,null,null,null,null,null,null,null,null,null,null,"선택합니다. 추가할 공종이 없으면 Del 키를 누릅니다."]
[null,null,null,null,null,null,null,null,null,null,null,null,null,null,null,null,null,null,null,null,null,null,null,null,null,null,null,null,null,null,null,"공종3","선택합니다. 추가할 공종이 없으면 Del 키를 누릅니다."]
[null,null,null,null,null,null,null,null,null,null,null,null,null,null,null,null,null,null,null,null,null,null,null,null,null,null,null,null,null,"1회차 \n교육","법정교육시간",{"$f":"T15","v":"(2+2) 4시간 이상"},"◀ 대상작업 법정 교육시간입니다."]
[null,null,null,null,null,null,null,null,null,null,null,null,null,null,null,null,null,null,null,null,null,null,null,null,null,null,null,null,null,null,"교육시간",4,"선택합니다. (법정교육시간을 참고합니다.)"]
["교육내용",null,null,"개별\n내용\n(1)",null,{"$f":"'DB2'!D6","v":"용접 흄, 분진 및 유해광선 등의 유해성에 관한 사항"},null,null,null,null,null,null,null,null,null,null,null,null,null,null,null,null,null,null,null,null,null,null,null,null,"시작시간",0.29166666666666702,"선택합니다."]
[null,null,null,null,null,{"$f":"'DB2'!D7","v":"가스용접기, 압력조정기, 호스 및 취관두(불꽃이 나오는 용접기의 앞부분) 등의 기기점검에 관한 사항"},null,null,null,null,null,null,null,null,null,null,null,null,null,null,null,null,null,null,null,null,null,null,null,"2회차\n교육","법정교육시간",{"$f":"T15","v":"(2+2) 4시간 이상"},"◀ 대상작업 법정 교육 시간입니다."]
[null,null,null,null,null,{"$f":"'DB2'!D8","v":"작업방법·순서 및 응급처치에 관한 사항"},null,null,null,null,null,null,null,null,null,null,null,null,null,null,null,null,null,null,null,null,null,null,null,null,"교육시간",3,"선택합니다. (법정교육시간을 참고합니다.)"]
[null,null,null,null,null,{"$f":"'DB2'!D9","v":"안전기 및 보호구 취급에 관한 사항"},null,null,null,null,null,null,null,null,null,null,null,null,null,null,null,null,null,null,null,null,null,null,null,null,"시작시간",0.54166666666666663,"선택합니다."]
[null,null,null,null,null,{"$f":"'DB2'!D10","v":"화재예방 및 초기대응에 관한사항"},null,null,null,null,null,null,null,null,null,null,null,null,null,null,null,null,null,null,null,null,null,null,null,"교육방법",null,"동영상+교재","선택합니다."]
[null,null,null,null,null,{"$f":"'DB2'!D11","v":"그 밖에 안전·보건관리에 필요한 사항"},null,null,null,null,null,null,null,null,null,null,null,null,null,null,null,null,null,null,null,null,null,null,null,"사용교재",null,"안전보건공단 자료외","입력합니다."]
[null,null,null,null,null,{"$f":"'DB2'!D12","v":""},null,null,null,null,null,null,null,null,null,null,null,null,null,null,null,null,null,null,null,null,null,null,null,"교육강사",null,"현장대리인","선택합니다."]
[null,null,null,null,null,{"$f":"'DB2'!D11","v":"그 밖에 안전·보건관리에 필요한 사항"},null,null,null,null,null,null,null,null,null,null,null,null,null,null,null,null,null,null,null,null,null,null,null,"교육장소",null,"교육장","선택합니다."]
[]
[null,null,null,"개별\n내용\n(2)",null,{"$f":"'DB2'!D13","v":"작업준비 및 작업절차에 관한 사항"}]
[null,null,null,null,null,{"$f":"'DB2'!D14","v":"작업장 내 위험물, 가연물의 사용·보관·설치 현황에 관한 사항"}]
[null,null,null,null,null,{"$f":"'DB2'!D15","v":"화재위험작업에 따른 인근 인화성 액체에 대한 방호조치에 관한 사항 "}]
[null,null,null,null,null,{"$f":"'DB2'!D16","v":"화재위험작업으로 인한 불꽃, 불티 등의 흩날림 방지 조치에 관한 사항"}]
[null,null,null,null,null,{"$f":"'DB2'!D17","v":"인화성 액체의 증기가 남아 있지 않도록 환기 등의 조치에 관한 사항"}]
[null,null,null,null,null,{"$f":"'DB2'!D18","v":"화재감시자의 직무 및 피난교육 등 비상조치에 관한 사항"}]
[null,null,null,null,null,{"$f":"'DB2'!D19","v":"그 밖에 안전·보건관리에 필요한 사항"}]
[null,null,null,null,null,{"$f":"'DB2'!D20","v":0}]
[]
["안전교육 참석자 명단"]
["이    름",null,null,null,null,"서  명",null,null,null,"이    름",null,null,null,null,"서  명",null,null,null,"이    름",null,null,null,null,"서  명"]
[1,null,null,null,null,null,null,null,null,26,null,null,null,null,null,null,null,null,51]
[2,null,null,null,null,null,null,null,null,27,null,null,null,null,null,null,null,null,52]
[3,null,null,null,null,null,null,null,null,28,null,null,null,null,null,null,null,null,53]
[4,null,null,null,null,null,null,null,null,29,null,null,null,null,null,null,null,null,54]
[5,null,null,null,null,null,null,null,null,30,null,null,null,null,null,null,null,null,55]
[6,null,null,null,null,null,null,null,null,31,null,null,null,null,null,null,null,null,56]
[7,null,null,null,null,null,null,null,null,32,null,null,null,null,null,null,null,null,57]
[8,null,null,null,null,null,null,null,null,33,null,null,null,null,null,null,null,null,58]
[9,null,null,null,null,null,null,null,null,34,null,null,null,null,null,null,null,null,59]
[10,null,null,null,null,null,null,null,null,35,null,null,null,null,null,null,null,null,60]
[11,null,null,null,null,null,null,null,null,36,null,null,null,null,null,null,null,null,61]
[12,null,null,null,null,null,null,null,null,37,null,null,null,null,null,null,null,null,62]
[13,null,null,null,null,null,null,null,null,38,null,null,null,null,null,null,null,null,63]
[14,null,null,null,null,null,null,null,null,39,null,null,null,null,null,null,null,null,64]
[15,null,null,null,null,null,null,null,null,40,null,null,null,null,null,null,null,null,65]
[16,null,null,null,null,null,null,null,null,41,null,null,null,null,null,null,null,null,66]
[17,null,null,null,null,null,null,null,null,42,null,null,null,null,null,null,null,null,67]
[18,null,null,null,null,null,null,null,null,43,null,null,null,null,null,null,null,null,68]
[19,null,null,null,null,null,null,null,null,44,null,null,null,null,null,null,null,null,69]
[20,null,null,null,null,null,null,null,null,45,null,null,null,null,null,null,null,null,70]
[21,null,null,null,null,null,null,null,null,46,null,null,null,null,null,null,null,null,71]
[22,null,null,null,null,null,null,null,null,47,null,null,null,null,null,null,null,null,72]
[23,null,null,null,null,null,null,null,null,48,null,null,null,null,null,null,null,null,73]
[24,null,null,null,null,null,null,null,null,49,null,null,null,null,null,null,null,null,74]
[25,null,null,null,null,null,null,null,null,50,null,null,null,null,null,null,null,null,75]

{"sheet":"교육사진(가로)","index":5,"n_rows":5,"n_cols":17,"rows_kept":5,"cut":false,"hidden":false,"merged":[[0,0,0,15],[0,16,0,21],[1,0,1,21],[4,2,17,19],[22,2,35,19]]}
[{"$f":"목차!C12","v":"OOO 출입구 설치공사"},null,null,null,null,null,null,null,null,null,null,null,null,null,null,null,"  안전교육사진대지  "]
[]
[]
[]
[null,null,"1. C5 셀을 클릭하면 큰 사각형이 선택됩니다.\n2. 그림삽입 단추를 클릭합니다.\n    사진이 들어 있는 폴더를 찾아갑니다.\n    입력할 사진을 찾아 더블 클릭 혹은 열기를 클릭합니다.\n    사진이 입력됩니다.\n3. 아래 사각형 C23 셀을 클릭하고 위와 같은 방법으로 두번째 사진을 입력합니다."]

{"sheet":"DB1","index":6,"n_rows":90,"n_cols":5,"rows_kept":90,"cut":false,"hidden":false,"merged":[]}
[{"$f":"INDEX(A6:A20,MATCH(근로자교육!F13,B6:B20,0))","v":"1900-01-04"},{"$f":"근로자교육!AF8","v":"가. 근로자 정기교육 / 사무직 종사 근로자"},{"$f":"VLOOKUP(B1,B6:C85,2,0)","v":"가. 정기교육"},{"$f":"VLOOKUP(B1,B6:D85,3,0)","v":"매반기 6시간 이상"},{"$f":"VLOOKUP(B1,B5:E85,4,0)","v":" 산업안전보건법 제29조제1항 (정기 안전보건교육)"}]
[{"$f":"INDEX(A23:A61,MATCH('특별교육 (관리감독자)'!AF8,'DB1'!B23:B61,0))","v":21},{"$f":"'특별교육 (관리감독자)'!AF8","v":"1. 고압실 내 작업"},{"$f":"'특별교육 (관리감독자)'!AF9","v":"라. 관리감독자 (특별교육 / 단기간 또는 간헐적작업)"},{"$f":"VLOOKUP(C2,B21:D22,3,0)","v":"2시간 이상"},{"$f":"VLOOKUP(B2,B5:E85,4,0)","v":" 산업안전보건법 제29조제3항 (유해위험작업 채용시 및 작업내용 변경시 안전보건교육)"}]
[{"$f":"INDEX(A23:A61,MATCH(특별교육!AF8,'DB1'!B23:B61,0))","v":21},{"$f":"특별교육!AF8","v":"1. 고압실 내 작업"},{"$f":"VLOOKUP(B3,B6:C85,2,0)","v":"라. 특별교육"},{"$f":"VLOOKUP(B3,B6:D110,3,0)","v":"2시간 이상"},{"$f":"VLOOKUP(B3,B5:E85,4,0)","v":" 산업안전보건법 제29조제3항 (유해위험작업 채용시 및 작업내용 변경시 안전보건교육)"}]
[{"$f":"INDEX(A62:A68,MATCH(B4,B62:B68,0))","v":60},{"$f":"'특별교육 2종'!AF8","v":"(2+38) 아세틸렌 용접장치 또는 가스집합 용접장치+가연물이 있는 장소에서 하는 화재위험 작업"},{"$f":"VLOOKUP(B4,B6:C85,2,0)","v":"라. 특별교육 2종"},{"$f":"VLOOKUP(B4,B6:D85,3,0)","v":"4시간 이상"},{"$f":"VLOOKUP(B4,B5:E85,4,0)","v":" 산업안전보건법 제29조제3항 (유해위험작업 채용시 및 작업내용 변경시 안전보건교육)"}]
["-",{"$f":"'DB2'!A4","v":"사업주는 소속 근로자에게 고용노동부령으로 정하는 바에 따라 정기적으로 안전보건교육을 하여야 한다."},{"$f":"'DB2'!B4","v":"1. 고압실 내 작업(잠함공법이나 그 밖의 압기공법으로 대기압을 넘는 기압인 작업실  또는 수갱\n    내부에서 하는 작업만 해당한다)"},{"$f":"'DB2'!C4","v":"1. 고압실 내 작업(잠함공법이나 그 밖의 압기공법으로 대기압을 넘는 기압인 작업실  또는 수갱\n    내부에서 하는 작업만 해당한다)"},{"$f":"'DB2'!D4","v":"2. 아세틸렌 용접장치 또는 가스집합 용접장치\n38. 가연물이 있는 장소에서 하는 화재위험작업"}]
[4,{"$f":"'DB2'!E2","v":"가. 근로자 정기교육 / 사무직 종사 근로자"},"가. 정기교육","매반기 6시간 이상"," 산업안전보건법 제29조제1항 (정기 안전보건교육)"]
[5,{"$f":"'DB2'!F2","v":"가. 근로자 정기교육 / 사무직 외에 판매업무에 직접종사하는 근로자"},"가. 정기교육","매반기 6시간 이상"," 산업안전보건법 제29조제1항 (정기 안전보건교육)"]
[6,{"$f":"'DB2'!G2","v":"가. 근로자 정기교육 / 사무직 외에 판매업무에 직접종사하는 근로자 외의 근로자"},"가. 정기교육","매반기 12시간 이상"," 산업안전보건법 제29조제1항 (정기 안전보건교육)"]
[7,{"$f":"'DB2'!H2","v":"가. 관리감독자 정기교육"},"가. 관리감독자 정기교육","연간 16시간 이상"," 산업안전보건법 제29조제1항 (정기 안전보건교육)"]
[8,{"$f":"'DB2'!I2","v":"나. 채용 시 교육 / 일용근로자 및 근로계약기간이 1주일 이하인 기간제근로자"},"나. 채용 시 교육","1시간 이상"," 산업안전보건법 제29조제2항 (채용시 및 작업내용 변경시 안전보건교육)"]
[9,{"$f":"'DB2'!J2","v":"나. 채용 시 교육 / 근로계약기간이 일주일 초과 1개월 이하인 기간제근로자"},"나. 채용 시 교육","4시간 이상"," 산업안전보건법 제29조제2항 (채용시 및 작업내용 변경시 안전보건교육)"]
[10,{"$f":"'DB2'!K2","v":"나. 채용 시 교육 / 3) 그 밖의 근로자"},"나. 채용 시 교육","8시간 이상"," 산업안전보건법 제29조제2항 (채용시 및 작업내용 변경시 안전보건교육)"]
[11,{"$f":"'DB2'!L2","v":"나. 채용 시 교육 / 관리감독자"},"나. 관리감독자 채용 시 교육","8시간 이상"," 산업안전보건법 제29조제2항 (채용시 및 작업내용 변경시 안전보건교육)"]
[12,{"$f":"'DB2'!M2","v":"다. 작업내용 변경 시 교육 / 일용근로자 및 근로계약기간이 일주일 초과 1개월 이하인 기간제근로자"},"다. 작업내용 변경 시 교육","1시간 이상"," 산업안전보건법 제29조제2항 (채용시 및 작업내용 변경시 안전보건교육)"]
[13,{"$f":"'DB2'!N2","v":"다. 작업내용 변경 시 교육 / 2) 그 밖의 근로자"},"다. 작업내용 변경 시 교육","2시간 이상"," 산업안전보건법 제29조제2항 (채용시 및 작업내용 변경시 안전보건교육)"]
[14,{"$f":"'DB2'!O2","v":"다. 작업내용 변경 시 교육 / 관리감독자"},"다. 관리감독자 작업내용 변경 시 교육 (관리감독자)","2시간 이상"," 산업안전보건법 제29조제2항 (채용시 및 작업내용 변경시 안전보건교육)"]
[15,{"$f":"'DB2'!P2","v":"가. 특수형태근로종사자 최초 노무제공 시 교육 / 단기간 · 간헐적 작업 시"},"가. 최초 노무제공 시 교육","1시간 이상"," 산업안전보건법 제77조 (특수형태근로종사자에 대한 안전조치 및 보건조치 등)"]
[16,{"$f":"'DB2'!Q2","v":"가. 특수형태근로종사자 최초 노무제공 시"},"가. 최초 노무제공 시 교육","2시간 이상"," 산업안전보건법 제77조 (특수형태근로종사자에 대한 안전조치 및 보건조치 등)"]
[17,{"$f":"'DB2'!R2","v":"굴착기 등 장비 유도원 (신호수)"},"유도자(신호수)교육","2시간 이상 (단기간, 간헐적)"," 산업안전보건법 제29조제2항 (채용시 및 작업내용 변경시 안전보건교육)"]
[18,{"$f":"'DB2'!S2","v":"6. 물질안전보건자료(MSDS)에 사용 시"},"물질안전보건자료 교육","정해진 교육시간 없음. 1시간 이상"," 산업안전보건법 제114조 (물질안전보건자료의 게시 및 교육)"]
[19,{"$f":"'DB2'!T2","v":"라. 관리감독자 (특별교육)"},"다. 특별교육 (관리감독자)","16시간 이상"," 산업안전보건법 제29조제3항 (유해위험작업 채용시 및 작업내용 변경시 안전보건교육)"]
[20,{"$f":"'DB2'!U2","v":"라. 관리감독자 (특별교육 / 단기간 또는 간헐적작업)"},"다. 특별교육 (관리감독자)","2시간 이상"," 산업안전보건법 제29조제3항 (유해위험작업 채용시 및 작업내용 변경시 안전보건교육)"]
[21,{"$f":"'DB2'!V2","v":"1. 고압실 내 작업"},"라. 특별교육","2시간 이상"," 산업안전보건법 제29조제3항 (유해위험작업 채용시 및 작업내용 변경시 안전보건교육)"]
[22,{"$f":"'DB2'!W2","v":"2. 아세틸렌 용접장치 또는 가스집합 용접장치"},"라. 특별교육","2시간 이상"," 산업안전보건법 제29조제3항 (유해위험작업 채용시 및 작업내용 변경시 안전보건교육)"]
[23,{"$f":"'DB2'!X2","v":"3. 밀폐된 장소에서 하는 용접작업 또는 습한 장소에서 하는 전기용접 작업"},"라. 특별교육","2시간 이상"," 산업안전보건법 제29조제3항 (유해위험작업 채용시 및 작업내용 변경시 안전보건교육)"]
[24,{"$f":"'DB2'!Y2","v":"4. 폭발성·물반응성·자기반응성·자기발열성 물질, 자연발화성 액체·고체 및 인화성 액체의 제조 또는 취급작업"},"라. 특별교육","2시간 이상"," 산업안전보건법 제29조제3항 (유해위험작업 채용시 및 작업내용 변경시 안전보건교육)"]
[25,{"$f":"'DB2'!Z2","v":"5. 액화석유가스·수소가스 등 인화성 가스 또는 폭발성 물질 중 가스의 발생장치 취급 작업"},"라. 특별교육","2시간 이상"," 산업안전보건법 제29조제3항 (유해위험작업 채용시 및 작업내용 변경시 안전보건교육)"]
[26,{"$f":"'DB2'!AA2","v":"6. 화학설비 중 반응기, 교반기·추출기의 사용 및 세척작업"},"라. 특별교육","2시간 이상"," 산업안전보건법 제29조제3항 (유해위험작업 채용시 및 작업내용 변경시 안전보건교육)"]
[27,{"$f":"'DB2'!AB2","v":"7. 화학설비의 탱크 내 작업"},"라. 특별교육","2시간 이상"," 산업안전보건법 제29조제3항 (유해위험작업 채용시 및 작업내용 변경시 안전보건교육)"]
[28,{"$f":"'DB2'!AC2","v":"8. 분말·원재료 등을 담은 호퍼·저장창고 등 저장탱크의 내부작업"},"라. 특별교육","2시간 이상"," 산업안전보건법 제29조제3항 (유해위험작업 채용시 및 작업내용 변경시 안전보건교육)"]
[29,{"$f":"'DB2'!AD2","v":"9. 건조설비에 의한 물건의 가열·건조작업"},"라. 특별교육","2시간 이상"," 산업안전보건법 제29조제3항 (유해위험작업 채용시 및 작업내용 변경시 안전보건교육)"]
[30,{"$f":"'DB2'!AE2","v":"10. 다음 각 목에 해당하는 집재장치"},"라. 특별교육","2시간 이상"," 산업안전보건법 제29조제3항 (유해위험작업 채용시 및 작업내용 변경시 안전보건교육)"]
[31,{"$f":"'DB2'!AF2","v":"11. 동력에 의하여 작동되는 프레스기계를 5대 이상 보유한 사업장에서 해당 기계로 하는 작업"},"라. 특별교육","2시간 이상"," 산업안전보건법 제29조제3항 (유해위험작업 채용시 및 작업내용 변경시 안전보건교육)"]
[32,{"$f":"'DB2'!AG2","v":"12. 목재가공용 기계를 5대 이상 보유한 사업장에서 해당 기계로 하는 작업"},"라. 특별교육","2시간 이상"," 산업안전보건법 제29조제3항 (유해위험작업 채용시 및 작업내용 변경시 안전보건교육)"]
[33,{"$f":"'DB2'!AH2","v":"13. 운반용 등 하역기계를 5대 이상 보유한 사업장에서의 해당 기계로 하는 작업"},"라. 특별교육","2시간 이상"," 산업안전보건법 제29조제3항 (유해위험작업 채용시 및 작업내용 변경시 안전보건교육)"]
[34,{"$f":"'DB2'!AI2","v":"14. 1톤 이상의 크레인을 사용하는 작업"},"라. 특별교육","2시간 이상"," 산업안전보건법 제29조제3항 (유해위험작업 채용시 및 작업내용 변경시 안전보건교육)"]
[35,{"$f":"'DB2'!AJ2","v":"15. 건설용 리프트·곤돌라를 이용한 작업"},"라. 특별교육","2시간 이상"," 산업안전보건법 제29조제3항 (유해위험작업 채용시 및 작업내용 변경시 안전보건교육)"]
[36,{"$f":"'DB2'!AK2","v":"16. 주물 및 단조(금속을 두들기거나 눌러서 형체를 만드는 일) 작업"},"라. 특별교육","2시간 이상"," 산업안전보건법 제29조제3항 (유해위험작업 채용시 및 작업내용 변경시 안전보건교육)"]
[37,{"$f":"'DB2'!AL2","v":"17. 전압이 75볼트 이상인 정전 및 활선작업"},"라. 특별교육","2시간 이상"," 산업안전보건법 제29조제3항 (유해위험작업 채용시 및 작업내용 변경시 안전보건교육)"]
[38,{"$f":"'DB2'!AM2","v":"18. 콘크리트 파쇄기를 사용하여 하는 파쇄작업"},"라. 특별교육","2시간 이상"," 산업안전보건법 제29조제3항 (유해위험작업 채용시 및 작업내용 변경시 안전보건교육)"]
[39,{"$f":"'DB2'!AN2","v":"19. 굴착면의 높이가 2미터 이상이 되는 지반 굴착 작업"},"라. 특별교육","2시간 이상"," 산업안전보건법 제29조제3항 (유해위험작업 채용시 및 작업내용 변경시 안전보건교육)"]
[40,{"$f":"'DB2'!AO2","v":"20. 흙막이 지보공의 보강 또는 동바리를 설치하거나 해체하는 작업"},"라. 특별교육","2시간 이상"," 산업안전보건법 제29조제3항 (유해위험작업 채용시 및 작업내용 변경시 안전보건교육)"]
[41,{"$f":"'DB2'!AP2","v":"21. 터널 안에서의 굴착작업"},"라. 특별교육","2시간 이상"," 산업안전보건법 제29조제3항 (유해위험작업 채용시 및 작업내용 변경시 안전보건교육)"]
[42,{"$f":"'DB2'!AQ2","v":"22. 굴착면의 높이가 2미터 이상이 되는 암석의 굴착작업"},"라. 특별교육","2시간 이상"," 산업안전보건법 제29조제3항 (유해위험작업 채용시 및 작업내용 변경시 안전보건교육)"]
[43,{"$f":"'DB2'!AR2","v":"23. 높이가 2미터 이상인 물건을 쌓거나 무너뜨리는 작업"},"라. 특별교육","2시간 이상"," 산업안전보건법 제29조제3항 (유해위험작업 채용시 및 작업내용 변경시 안전보건교육)"]
[44,{"$f":"'DB2'!AS2","v":"24. 선박에 짐을 쌓거나 부리거나 이동시키는 작업"},"라. 특별교육","2시간 이상"," 산업안전보건법 제29조제3항 (유해위험작업 채용시 및 작업내용 변경시 안전보건교육)"]
[45,{"$f":"'DB2'!AT2","v":"25. 거푸집 동바리의 조립 또는 해체작업"},"라. 특별교육","2시간 이상"," 산업안전보건법 제29조제3항 (유해위험작업 채용시 및 작업내용 변경시 안전보건교육)"]
[46,{"$f":"'DB2'!AU2","v":"26. 비계의 조립·해체 또는 변경작업"},"라. 특별교육","2시간 이상"," 산업안전보건법 제29조제3항 (유해위험작업 채용시 및 작업내용 변경시 안전보건교육)"]
[47,{"$f":"'DB2'!AV2","v":"27. 건축물의 골조, 다리의 상부구조 또는 탑의 금속제의 부재로 구성되는 것의 조립· 해체 또는 변경작업"},"라. 특별교육","2시간 이상"," 산업안전보건법 제29조제3항 (유해위험작업 채용시 및 작업내용 변경시 안전보건교육)"]
[48,{"$f":"'DB2'!AW2","v":"28. 처마 높이가 5미터 이상인 목조건축물의 구조 부재의 조립이나 건축물의 지붕 또는 외벽 밑에서의 설치작업"},"라. 특별교육","2시간 이상"," 산업안전보건법 제29조제3항 (유해위험작업 채용시 및 작업내용 변경시 안전보건교육)"]
[49,{"$f":"'DB2'!AX2","v":"29. 콘크리트 인공구조물의 해체 또는 파괴작업"},"라. 특별교육","2시간 이상"," 산업안전보건법 제29조제3항 (유해위험작업 채용시 및 작업내용 변경시 안전보건교육)"]
[50,{"$f":"'DB2'!AY2","v":"30. 타워크레인을 설치(상승작업을 포함한다)·해체하는 작업"},"라. 특별교육","2시간 이상"," 산업안전보건법 제29조제3항 (유해위험작업 채용시 및 작업내용 변경시 안전보건교육)"]
[51,{"$f":"'DB2'!AZ2","v":"31. 보일러(소형 보일러 및 다음 각 목에서 정하는 보일러는 제외한다)의 설치 및 취급 작업"},"라. 특별교육","2시간 이상"," 산업안전보건법 제29조제3항 (유해위험작업 채용시 및 작업내용 변경시 안전보건교육)"]
[52,{"$f":"'DB2'!BA2","v":"32. 게이지 압력을 제곱센티미터당 1킬로그램 이상으로 사용하는 압력용기의 설치 및 취급작업"},"라. 특별교육","2시간 이상"," 산업안전보건법 제29조제3항 (유해위험작업 채용시 및 작업내용 변경시 안전보건교육)"]
[53,{"$f":"'DB2'!BB2","v":"33. 방사선 업무에 관계되는 작업"},"라. 특별교육","2시간 이상"," 산업안전보건법 제29조제3항 (유해위험작업 채용시 및 작업내용 변경시 안전보건교육)"]
[54,{"$f":"'DB2'!BC2","v":"34. 밀폐공간에서의 작업"},"라. 특별교육","2시간 이상"," 산업안전보건법 제29조제3항 (유해위험작업 채용시 및 작업내용 변경시 안전보건교육)"]
[55,{"$f":"'DB2'!BD2","v":"35. 허가 및 관리 대상 유해물질의 제조 또는 취급작업"},"라. 특별교육","2시간 이상"," 산업안전보건법 제29조제3항 (유해위험작업 채용시 및 작업내용 변경시 안전보건교육)"]
[56,{"$f":"'DB2'!BE2","v":"36. 로봇작업"},"라. 특별교육","2시간 이상"," 산업안전보건법 제29조제3항 (유해위험작업 채용시 및 작업내용 변경시 안전보건교육)"]
[57,{"$f":"'DB2'!BF2","v":"37. 석면해체·제거작업"},"라. 특별교육","2시간 이상"," 산업안전보건법 제29조제3항 (유해위험작업 채용시 및 작업내용 변경시 안전보건교육)"]
[58,{"$f":"'DB2'!BG2","v":"38. 가연물이 있는 장소에서 하는 화재위험작업"},"라. 특별교육","2시간 이상"," 산업안전보건법 제29조제3항 (유해위험작업 채용시 및 작업내용 변경시 안전보건교육)"]
[59,{"$f":"'DB2'!BH2","v":"39. 타워크레인을 사용하는 작업시 신호업무를 하는 작업"},"라. 특별교육","8시간 이상"," 산업안전보건법 제29조제3항 (유해위험작업 채용시 및 작업내용 변경시 안전보건교육)"]
[60,"(2+38) 아세틸렌 용접장치 또는 가스집합 용접장치+가연물이 있는 장소에서 하는 화재위험 작업","라. 특별교육 2종","4시간 이상"," 산업안전보건법 제29조제3항 (유해위험작업 채용시 및 작업내용 변경시 안전보건교육)"]
[61,"(14+19) 1톤 이상의 크레인을 사용하는 작업+굴착면의 높이가 2미터 이상이되는 지반 굴착작업","라. 특별교육 2종","4시간 이상"," 산업안전보건법 제29조제3항 (유해위험작업 채용시 및 작업내용 변경시 안전보건교육)"]
[62,"(14+26) 1톤 이상의 크레인을 사용하는 작업 + 비계의 조립·해체 또는 변경작업","라. 특별교육 2종","4시간 이상"," 산업안전보건법 제29조제3항 (유해위험작업 채용시 및 작업내용 변경시 안전보건교육)"]
[63,"(14+27) 1톤 이상의 크레인을 사용하는 작업 + 탑 조립 해체 또는 변경작업","라. 특별교육 2종","4시간 이상"," 산업안전보건법 제29조제3항 (유해위험작업 채용시 및 작업내용 변경시 안전보건교육)"]
[64,"(19+20) 굴착면의 높이가 2미터 이상이되는 지반 굴착작업+흙막이 지보공의 보강 작업","라. 특별교육 2종","4시간 이상"," 산업안전보건법 제29조제3항 (유해위험작업 채용시 및 작업내용 변경시 안전보건교육)"]
[65,"(20+3) 흙막이 지보공의 보강 작업+습한장소에서 하는 전기용접 작업","라. 특별교육 2종","4시간 이상"," 산업안전보건법 제29조제3항 (유해위험작업 채용시 및 작업내용 변경시 안전보건교육)"]
[66,"(17+27) 전압이 75볼트 이상인 정전 및 활선작업+탑의 금속제의 부재로 구성되는 것의 조립· 해체 또는 변경작업","라. 특별교육 2종","4시간 이상"," 산업안전보건법 제29조제3항 (유해위험작업 채용시 및 작업내용 변경시 안전보건교육)"]
[]
[]
[]
[]
[]
[]
[{"$f":"A77+A81","v":"1900-01-05"},{"$f":"B81&B77","v":"39. 타워크레인을 사용하는 작업시 신호업무에 종사하는 근로자를 제외한 작업1) 일용근로자 및 근로계약기간이 1주일 이하인 기간제근로자"},"라. 특별교육","2시간 이상"," 산업안전보건법 제29조제3항 (유해위험작업 채용시 및 작업내용 변경시 안전보건교육)"]
[{"$f":"A77+A80","v":"1900-01-04"},{"$f":"B80&B77","v":"39. 타워크레인을 사용하는 작업시 신호업무를 하는 작업1) 일용근로자 및 근로계약기간이 1주일 이하인 기간제근로자"},"라. 특별교육","8시간 이상"," 산업안전보건법 제29조제3항 (유해위험작업 채용시 및 작업내용 변경시 안전보건교육)"]
["1900-01-03","1) 일용근로자 및 근로계약기간이 1주일 이하인 기간제근로자","라. 특별교육","2시간 이상"," 산업안전보건법 제29조제3항 (유해위험작업 채용시 및 작업내용 변경시 안전보건교육)"]
["1900-01-01","2) 일용근로자 및 근로계약기간이 1주일 이하인 기간제근로자를 제외한 근로자","라. 특별교육","16시간 이상"," 산업안전보건법 제29조제3항 (유해위험작업 채용시 및 작업내용 변경시 안전보건교육)"]
["1900-01-02","3) 일용근로자 및 근로계약기간이 1주일 이하인 기간제근로자를 제외한 근로자 (단기간 또는 간헐적 작업)","라. 특별교육","2시간 이상"," 산업안전보건법 제29조제3항 (유해위험작업 채용시 및 작업내용 변경시 안전보건교육)"]
["1900-01-01","39. 타워크레인을 사용하는 작업시 신호업무를 하는 작업"]
["1900-01-02","39. 타워크레인을 사용하는 작업시 신호업무에 종사하는 근로자를 제외한 작업"]
[]
[1,"라. 관리감독자 (특별교육)","라. 특별교육","16시간 이상"," 산업안전보건법 제29조제3항 (유해위험작업 채용시 및 작업내용 변경시 안전보건교육)"]
[2,"라. 관리감독자 (특별교육 / 단기간 또는 간헐적작업)","라. 특별교육","2시간 이상"," 산업안전보건법 제29조제3항 (유해위험작업 채용시 및 작업내용 변경시 안전보건교육)"]
[]
[{"$f":"A87+A90","v":5},{"$f":"B90&B87","v":"39. 타워크레인을 사용하는 작업시 신호업무에 종사하는 근로자를 제외한 작업1) 일용근로자 및 근로계약기간이 1주일 이하인 기간제근로자"},"라. 특별교육","(2+2) 4시간 이상"," 산업안전보건법 제29조제3항 (유해위험작업 채용시 및 작업내용 변경시 안전보건교육)"]
[3,"1) 일용근로자 및 근로계약기간이 1주일 이하인 기간제근로자","라. 특별교육","(2+2) 4시간 이상"," 산업안전보건법 제29조제3항 (유해위험작업 채용시 및 작업내용 변경시 안전보건교육)"]
[1,"2) 일용근로자 및 근로계약기간이 1주일 이하인 기간제근로자를 제외한 근로자","라. 특별교육","(16+16) 32시간 이상"," 산업안전보건법 제29조제3항 (유해위험작업 채용시 및 작업내용 변경시 안전보건교육)"]
[2,"3) 일용근로자 및 근로계약기간이 1주일 이하인 기간제근로자를 제외한 근로자 (단기간 또는 간헐적 작업)","라. 특별교육","(2+2) 4시간 이상"," 산업안전보건법 제29조제3항 (유해위험작업 채용시 및 작업내용 변경시 안전보건교육)"]
[2,"39. 타워크레인을 사용하는 작업시 신호업무에 종사하는 근로자를 제외한 작업"]

{"sheet":"DB2","index":7,"n_rows":79,"n_cols":67,"rows_kept":79,"cut":false,"hidden":false,"merged":[[3,1,4,1],[3,20,4,20],[3,9,4,9],[3,10,4,10],[3,16,4,16],[3,12,4,12],[3,13,4,13],[3,11,4,11],[3,19,4,19],[3,64,4,64],[3,32,4,32],[3,21,4,21],[3,22,4,22],[3,23,4,23],[3,24,4,24],[3,25,4,25],[3,26,4,26],[3,27,4,27],[3,28,4,28],[3,29,4,29],[3,30,4,30],[3,31,4,31],[3,44,4,44],[3,33,4,33],[3,34,4,34],[3,40,4,40],[3,59,4,59],[3,55,4,55],[3,56,4,56],[3,45,4,45],[3,46,4,46],[3,47,4,47],[3,48,4,48],[3,49,4,49],[3,50,4,50],[3,65,4,65],[3,60,4,60],[3,66,4,66],[3,61,4,61],[3,15,4,15],[3,18,4,18],[3,51,4,51],[3,52,4,52],[3,53,4,53],[3,54,4,54],[3,35,4,35],[3,36,4,36],[3,37,4,37],[3,38,4,38],[3,39,4,39],[3,41,4,41],[3,63,4,63],[3,0,4,0],[3,2,4,2],[3,3,4,3],[3,4,4,4],[3,7,4,7],[3,5,4,5],[3,6,4,6],[3,8,4,8],[3,57,4,57],[3,58,4,58],[3,62,4,62],[3,14,4,14],[3,17,4,17],[3,42,4,42],[3,43,4,43]]}
[{"$f":"'DB1'!B1","v":"가. 근로자 정기교육 / 사무직 종사 근로자"},{"$f":"'DB1'!B2","v":"1. 고압실 내 작업"},{"$f":"'DB1'!B3","v":"1. 고압실 내 작업"},{"$f":"'DB1'!B4","v":"(2+38) 아세틸렌 용접장치 또는 가스집합 용접장치+가연물이 있는 장소에서 하는 화재위험 작업"},"1. 근로자 안전보건교육(제29조제1항 관련)","1. 근로자 안전보건교육(제29조제1항 관련)","1. 근로자 안전보건교육(제29조제1항 관련)","1. 근로자 안전보건교육(제29조제1항 관련)","1. 근로자 안전보건교육(제29조제2항 관련)","1. 근로자 안전보건교육(제29조제2항 관련)","1. 근로자 안전보건교육(제29조제2항 관련)","1. 근로자 안전보건교육(제29조제2항 관련)","1. 근로자 안전보건교육(제29조제2항 관련)","1. 근로자 안전보건교육(제29조제2항 관련)","1. 근로자 안전보건교육(제29조제2항 관련)","4. 특수형태근로종사자에 대한 안전보건교육(제77조제2항 관련)","4. 특수형태근로종사자에 대한 안전보건교육(제77조제2항 관련)","유도자(신호수) 교육","6. 물질안전보건자료에 관한 교육(제114조제3항관련)","1. 근로자 안전보건교육(제29조제3항 관련)","1. 근로자 안전보건교육(제29조제3항 관련)","1. 근로자 안전보건교육(제29조제3항 관련)","1. 근로자 안전보건교육(제29조제3항 관련)","1. 근로자 안전보건교육(제29조제3항 관련)","1. 근로자 안전보건교육(제29조제3항 관련)","1. 근로자 안전보건교육(제29조제3항 관련)","1. 근로자 안전보건교육(제29조제3항 관련)","1. 근로자 안전보건교육(제29조제3항 관련)","1. 근로자 안전보건교육(제29조제3항 관련)","1. 근로자 안전보건교육(제29조제3항 관련)","1. 근로자 안전보건교육(제29조제3항 관련)","1. 근로자 안전보건교육(제29조제3항 관련)","1. 근로자 안전보건교육(제29조제3항 관련)","1. 근로자 안전보건교육(제29조제3항 관련)","1. 근로자 안전보건교육(제29조제3항 관련)","1. 근로자 안전보건교육(제29조제3항 관련)","1. 근로자 안전보건교육(제29조제3항 관련)","1. 근로자 안전보건교육(제29조제3항 관련)","1. 근로자 안전보건교육(제29조제3항 관련)","1. 근로자 안전보건교육(제29조제3항 관련)","1. 근로자 안전보건교육(제29조제3항 관련)","1. 근로자 안전보건교육(제29조제3항 관련)","1. 근로자 안전보건교육(제29조제3항 관련)","1. 근로자 안전보건교육(제29조제3항 관련)","1. 근로자 안전보건교육(제29조제3항 관련)","1. 근로자 안전보건교육(제29조제3항 관련)","1. 근로자 안전보건교육(제29조제3항 관련)","1. 근로자 안전보건교육(제29조제3항 관련)","1. 근로자 안전보건교육(제29조제3항 관련)","1. 근로자 안전보건교육(제29조제3항 관련)","1. 근로자 안전보건교육(제29조제3항 관련)","1. 근로자 안전보건교육(제29조제3항 관련)","1. 근로자 안전보건교육(제29조제3항 관련)","1. 근로자 안전보건교육(제29조제3항 관련)","1. 근로자 안전보건교육(제29조제3항 관련)","1. 근로자 안전보건교육(제29조제3항 관련)","1. 근로자 안전보건교육(제29조제3항 관련)","1. 근로자 안전보건교육(제29조제3항 관련)","1. 근로자 안전보건교육(제29조제3항 관련)","1. 근로자 안전보건교육(제29조제3항 관련)","1. 근로자 안전보건교육(제29조제3항 관련)","1. 근로자 안전보건교육(제29조제3항 관련)","1. 근로자 안전보건교육(제29조제3항 관련)","1. 근로자 안전보건교육(제29조제3항 관련)","1. 근로자 안전보건교육(제29조제3항 관련)","1. 근로자 안전보건교육(제29조제3항 관련)","1. 근로자 안전보건교육(제29조제3항 관련)"]
[{"$f":"'DB1'!A1","v":4},{"$f":"'DB1'!A2","v":21},{"$f":"'DB1'!A3","v":21},{"$f":"'DB1'!A4","v":60},"가. 근로자 정기교육 / 사무직 종사 근로자","가. 근로자 정기교육 / 사무직 외에 판매업무에 직접종사하는 근로자","가. 근로자 정기교육 / 사무직 외에 판매업무에 직접종사하는 근로자 외의 근로자","가. 관리감독자 정기교육","나. 채용 시 교육 / 일용근로자 및 근로계약기간이 1주일 이하인 기간제근로자","나. 채용 시 교육 / 근로계약기간이 일주일 초과 1개월 이하인 기간제근로자","나. 채용 시 교육 / 3) 그 밖의 근로자","나. 채용 시 교육 / 관리감독자","다. 작업내용 변경 시 교육 / 일용근로자 및 근로계약기간이 일주일 초과 1개월 이하인 기간제근로자","다. 작업내용 변경 시 교육 / 2) 그 밖의 근로자","다. 작업내용 변경 시 교육 / 관리감독자","가. 특수형태근로종사자 최초 노무제공 시 교육 / 단기간 · 간헐적 작업 시","가. 특수형태근로종사자 최초 노무제공 시","굴착기 등 장비 유도원 (신호수)","6. 물질안전보건자료(MSDS)에 사용 시","라. 관리감독자 (특별교육)","라. 관리감독자 (특별교육 / 단기간 또는 간헐적작업)","1. 고압실 내 작업","2. 아세틸렌 용접장치 또는 가스집합 용접장치","3. 밀폐된 장소에서 하는 용접작업 또는 습한 장소에서 하는 전기용접 작업","4. 폭발성·물반응성·자기반응성·자기발열성 물질, 자연발화성 액체·고체 및 인화성 액체의 제조 또는 취급작업","5. 액화석유가스·수소가스 등 인화성 가스 또는 폭발성 물질 중 가스의 발생장치 취급 작업","6. 화학설비 중 반응기, 교반기·추출기의 사용 및 세척작업","7. 화학설비의 탱크 내 작업","8. 분말·원재료 등을 담은 호퍼·저장창고 등 저장탱크의 내부작업","9. 건조설비에 의한 물건의 가열·건조작업","10. 다음 각 목에 해당하는 집재장치","11. 동력에 의하여 작동되는 프레스기계를 5대 이상 보유한 사업장에서 해당 기계로 하는 작업","12. 목재가공용 기계를 5대 이상 보유한 사업장에서 해당 기계로 하는 작업","13. 운반용 등 하역기계를 5대 이상 보유한 사업장에서의 해당 기계로 하는 작업","14. 1톤 이상의 크레인을 사용하는 작업","15. 건설용 리프트·곤돌라를 이용한 작업","16. 주물 및 단조(금속을 두들기거나 눌러서 형체를 만드는 일) 작업","17. 전압이 75볼트 이상인 정전 및 활선작업","18. 콘크리트 파쇄기를 사용하여 하는 파쇄작업","19. 굴착면의 높이가 2미터 이상이 되는 지반 굴착 작업","20. 흙막이 지보공의 보강 또는 동바리를 설치하거나 해체하는 작업","21. 터널 안에서의 굴착작업","22. 굴착면의 높이가 2미터 이상이 되는 암석의 굴착작업","23. 높이가 2미터 이상인 물건을 쌓거나 무너뜨리는 작업","24. 선박에 짐을 쌓거나 부리거나 이동시키는 작업","25. 거푸집 동바리의 조립 또는 해체작업","26. 비계의 조립·해체 또는 변경작업","27. 건축물의 골조, 다리의 상부구조 또는 탑의 금속제의 부재로 구성되는 것의 조립· 해체 또는 변경작업","28. 처마 높이가 5미터 이상인 목조건축물의 구조 부재의 조립이나 건축물의 지붕 또는 외벽 밑에서의 설치작업","29. 콘크리트 인공구조물의 해체 또는 파괴작업","30. 타워크레인을 설치(상승작업을 포함한다)·해체하는 작업","31. 보일러(소형 보일러 및 다음 각 목에서 정하는 보일러는 제외한다)의 설치 및 취급 작업","32. 게이지 압력을 제곱센티미터당 1킬로그램 이상으로 사용하는 압력용기의 설치 및 취급작업","33. 방사선 업무에 관계되는 작업","34. 밀폐공간에서의 작업","35. 허가 및 관리 대상 유해물질의 제조 또는 취급작업","36. 로봇작업","37. 석면해체·제거작업","38. 가연물이 있는 장소에서 하는 화재위험작업","39. 타워크레인을 사용하는 작업시 신호업무를 하는 작업","(2+38) 아세틸렌 용접장치 또는 가스집합 용접장치+가연물이 있는 장소에서 하는 화재위험 작업","(14+19) 1톤 이상의 크레인을 사용하는 작업+굴착면의 높이가 2미터 이상이되는 지반 굴착작업","(14+26) 1톤 이상의 크레인을 사용하는 작업 + 비계의 조립·해체 또는 변경작업","(14+27) 1톤 이상의 크레인을 사용하는 작업 + 철탑의 조리 ·해체 또는 변경작업","(19+20) 굴착면의 높이가 2미터 이상이되는 지반 굴착작업+흙막이 지보공의 보강 작업","(20+3) 흙막이 지보공의 보강 작업+습한장소에서 하는 전기용접 작업","(17+27) 전압이 75볼트 이상인 정전 및 활선작업+탑의 금속제의 부재로 구성되는 것의 조립· 해체 또는 변경작업"]
[null,null,null,null,4,5,6,7,8,9,10,11,12,13,14,15,16,17,18,19,20,21,22,23,24,25,26,27,28,29,30,31,32,33,34,35,36,37,38,39,40,41,42,43,44,45,46,47,48,49,50,51,52,53,54,55,56,57,58,59,60,61,62,63,64,65,66]
[{"$f":"OFFSET($A$1,ROW()-1,$A$2,1,)","v":"사업주는 소속 근로자에게 고용노동부령으로 정하는 바에 따라 정기적으로 안전보건교육을 하여야 한다."},{"$f":"OFFSET($A$1,ROW()-1,$B$2,1)","v":"1. 고압실 내 작업(잠함공법이나 그 밖의 압기공법으로 대기압을 넘는 기압인 작업실  또는 수갱\n    내부에서 하는 작업만 해당한다)"},{"$f":"OFFSET($A$1,ROW()-1,$C$2,1)","v":"1. 고압실 내 작업(잠함공법이나 그 밖의 압기공법으로 대기압을 넘는 기압인 작업실  또는 수갱\n    내부에서 하는 작업만 해당한다)"},{"$f":"OFFSET($A$1,ROW()-1,$D$2,1,1)","v":"2. 아세틸렌 용접장치 또는 가스집합 용접장치\n38. 가연물이 있는 장소에서 하는 화재위험작업"},"사업주는 소속 근로자에게 고용노동부령으로 정하는 바에 따라 정기적으로 안전보건교육을 하여야 한다.","사업주는 소속 근로자에게 고용노동부령으로 정하는 바에 따라 정기적으로 안전보건교육을 하여야 한다.","사업주는 소속 근로자에게 고용노동부령으로 정하는 바에 따라 정기적으로 안전보건교육을 하여야 한다.","사업주는 소속 근로자에게 고용노동부령으로 정하는 바에 따라 정기적으로 안전보건교육을 하여야 한다.","사업주는 근로자를 채용할 때와 작업내용을 변경할 때에는 그 근로자에게 고용노동부령으로 정하는 바에 따라 해당 작업에 필요한 교육을 해야 한다.","사업주는 근로자를 채용할 때와 작업내용을 변경할 때에는 그 근로자에게 고용노동부령으로 정하 는 바에 따라 해당 작업에 필요한 교육을 해야 한다.","사업주는 근로자를 채용할 때와 작업내용을 변경할 때에는 그 근로자에게 고용노동부령으로 정하 는 바에 따라 해당 작업에 필요한 교육을 해야 한다.","사업주는 근로자를 채용할 때와 작업내용을 변경할 때에는 그 근로자에게 고용노동부령으로 정하 는 바에 따라 해당 작업에 필요한 교육을 해야 한다.","사업주는 근로자를 채용할 때와 작업내용을 변경할 때에는 그 근로자에게 고용노동부령으로 정하는 바에 따라 해당 작업에 필요한 교육을 해야 한다.","사업주는 근로자를 채용할 때와 작업내용을 변경할 때에는 그 근로자에게 고용노동부령으로 정하는 바에 따라 해당 작업에 필요한 교육을 해야 한다.","사업주는 근로자를 채용할 때와 작업내용을 변경할 때에는 그 근로자에게 고용노동부령으로 정하는 바에 따라 해당 작업에 필요한 교육을 해야 한다.","계약의 형식에 관계없이 근로자와 유사하게 노무를 제공하여 업무상의 재해로부터 보호할 필요가 있음에도 「근로기준법」 등이 적용되지 아니하는 사람으로서 다음 각 호의 요건을 모두 충족하는 특수형태근로종사자의 노무를 제공받는 자는 특수형태근로종사자의 산업재해 예방을 위하여 필요한 안전조치 및 보건조치를 하여야 한다. ","계약의 형식에 관계없이 근로자와 유사하게 노무를 제공하여 업무상의 재해로부터 보호할 필요가 있음에도 「근로기준법」 등이 적용되지 아니하는 사람으로서 다음 각 호의 요건을 모두 충족하는 특수형태근로종사자의 노무를 제공받는 자는 특수형태근로종사자의 산업재해 예방을 위하여 필요한 안전조치 및 보건조치를 하여야 한다. ","건설기계 사용 시 장비간 충돌 또는 근로자의 협착, 충돌사고의 빈도가 높으므로 이에 대한 예방을 위해 숙련된 유도원을 배치하여 장비 작업을 실시함으로써 정해진 신호방법에 의해 기계 및 차량을 유도하여 동종 사고 예방을 위함","물질안전보건자료대상물질을 취급하려는 사업주는 물질안전보건자료대상물질을 취급하는 근로자 의 안전 및 보건을 위하여 고용노동부령(시행규칙)으로 정하는 바에 따라 해당 근로자를 교육하는 등 적절한 조치를 하여야 한다.","사업주는 소속 근로자에게 고용노동부령으로 정하는 바에 따라 정기적으로 안전보건교육을 하여야\n 한다.","사업주는 소속 근로자에게 고용노동부령으로 정하는 바에 따라 정기적으로 안전보건교육을 하여야\n 한다.","1. 고압실 내 작업(잠함공법이나 그 밖의 압기공법으로 대기압을 넘는 기압인 작업실  또는 수갱\n    내부에서 하는 작업만 해당한다)","2. 아세틸렌 용접장치 또는 가스집합 용접장치를 사용하는 금속의 용접·용단 또는 가열작업 (발생\n   기·도관 등에 의하여 구성되는 용접장치만 해당한다)","3. 밀폐된 장소(탱크 내 또는 환기가 극히 불량한 좁은 장소를 말한다)에서 하는 용접작업 또는 \n    습한 장소에서 하는 전기용접 작업","4. 폭발성·물반응성·자기반응성·자기발열성 물질, 자연발화성 액체·고체 및 인화성 액체의 제조\n    또는 취급작업(시험연구를 위한 취급작업은 제외한다)","5. 액화석유가스·수소가스 등 인화성 가스 또는 폭발성 물질 중 가스의 발생장치 취급 작업","6. 화학설비 중 반응기, 교반기·추출기의 사용 및 세척작업","7. 화학설비의 탱크 내 작업","8. 분말·원재료 등을 담은 호퍼(하부가 깔대기 모양으로 된 저장통)·저장창고 등 저장탱크의 \n   내부작업","9. 다음 각 목에 정하는 설비에 의한 물건의 가열·건조작업\n    가. 건조설비 중 위험물 등에 관계되는 설비로 속부피가 1세제곱미터 이상인 것\n    나. 건조설비 중 가목의 위험물 등 외의 물질에 관계되는 설비로서, 연료를 열원으로 사용하는 \n    것(그 최대연소소비량이 매 시간당 10킬로그램 이상인 것만 해당한다) 또는 전력을 열원으로\n    사용하는 것 (정격소비전력이 10킬로와트 이상인 경우만 해당한다)","10. 다음 각 목에 해당하는 집재장치(집재기·가선·운반기구·지주 및 이들에 부속하는 물건으로 구성\n     되고, 동력을 사용하여 원목 또는 장작과 숯을 담아 올리거나 공중에서 운반하는 설비를 말한\n     다)의 조립, 해체, 변경 또는 수리작업 및 이들 설비에 의한 집재 또는 운반작업\n       가. 원동기의 정격출력이 7.5킬로와트를 넘는 것\n       나. 지간의 경사거리 합계가 350미터 이상인 것\n       다. 최대사용하중이 200킬로그램 이상인 것","11. 동력에 의하여 작동되는 프레스기계를 5대 이상 보유한 사업장에서 해당 기계로 하는 작업","12. 목재가공용 기계[둥근톱기계, 띠톱기계, 대패기계, 모떼기기계 및 라우터기 (목재를 자르거나\n    홈을 파는 기계)만 해당하며, 휴대용은 제외한다]를 5대 이상 보유한 사업장에서 해당 기계로\n    하는 작업","13. 운반용 등 하역기계를 5대 이상 보유한 사업장에서의 해당 기계로 하는 작업","14. 1톤 이상의 크레인을 사용하는 작업 또는 1톤 미만의 크레인 또는 호이스트를 5대 이상 보유한\n     사업장에서 해당 기계로 하는 작업(제40호의 작업은 제외한다)","15. 건설용 리프트·곤돌라를 이용한 작업","16. 주물 및 단조(금속을 두들기거나 눌러서 형체를 만드는 일) 작업","17. 전압이 75볼트 이상인 정전 및 활선작업","18. 콘크리트 파쇄기를 사용하여 하는 파쇄작업(2미터 이상인 구축물의 파쇄작업만 해당한다)","19. 굴착면의 높이가 2미터 이상이 되는 지반 굴착(터널 및 수직갱 외의 갱 굴착은 제외한다)작업","20. 흙막이 지보공의 보강 또는 동바리를 설치하거나 해체하는 작업","21. 터널 안에서의 굴착작업(굴착용 기계를 사용하여 하는 굴착작업 중 근로자가 칼날 밑에 접근하\n     지 않고 하는 작업은 제외한다) 또는 같은 작업에서의 터널 거푸집 지보공의 조립 또는 콘크리\n     트 작업","22. 굴착면의 높이가 2미터 이상이 되는 암석의 굴착작업","23. 높이가 2미터 이상인 물건을 쌓거나 무너뜨리는 작업(하역기계로만 하는 작업은 제외한다)","24. 선박에 짐을 쌓거나 부리거나 이동시키는 작업","25. 거푸집 동바리의 조립 또는 해체작업","26. 비계의 조립·해체 또는 변경작업","27. 건축물의 골조, 다리의 상부구조 또는 탑의 금속제의 부재로 구성되는 것 (5미터 이상인 것만\n     해당한다)의 조립· 해체 또는 변경작업","28. 처마 높이가 5미터 이상인 목조건축물의 구조 부재의 조립이나 건축물의 지붕 또는 외벽\n     밑에서의 설치작업","29. 콘크리트 인공구조물(그 높이가 2미터 이상인 것만 해당한다)의 해체 또는 파괴작업","30. 타워크레인을 설치(상승작업을 포함한다)·해체하는 작업","31. 보일러(소형 보일러 및 다음 각 목에서 정하는 보일러는 제외한다)의 설치 및 취급 작업\n      가. 몸통 반지름이 750밀리미터 이하이고 그 길이가 1,300밀리미터 이하인 증기보일러\n      나. 전열면적이 3제곱미터 이하인 증기보일러\n      다. 전열면적이 14제곱미터 이하인 온수보일러\n      라. 전열면적이 30제곱미터 이하인 관류보일러(물관을 사용하여 가열시키는 방식의 보일러)","32. 게이지 압력을 제곱센티미터당 1킬로그램 이상으로 사용하는 압력용기의 설치 및 취급작업","33. 방사선 업무에 관계되는 작업(의료 및 실험용은 제외한다)","34. 밀폐공간에서의 작업","35. 허가 및 관리 대상 유해물질의 제조 또는 취급작업","36. 로봇작업","37. 석면해체·제거작업","38. 가연물이 있는 장소에서 하는 화재위험작업","39. 타워크레인을 사용하는 작업시 신호업무를 하는 작업","2. 아세틸렌 용접장치 또는 가스집합 용접장치\n38. 가연물이 있는 장소에서 하는 화재위험작업","14. 1톤 이상의 크레인을 사용하는 작업\n19. 굴착면의 높이가 2미터 이상이 되는 지반 굴착 작업","14. 1톤 이상의 크레인을 사용하는 작업\n26. 비계의 조립·해체 또는 변경작업","14. 1톤 이상의 크레인을 사용하는 작업\n27. 건축물의 골조, 다리의 상부구조 또는 탑의 금속제의 부재로 구성되는 것 (5미터 이상인 것만 해당한다)의 조립· 해체 또는 변경작업","19. 굴착면의 높이가 2미터 이상이 되는 지반 굴착 작업\n20. 흙막이 지보공의 보강 또는 동바리를 설치하거나 해체하는 작업","20. 흙막이 지보공의 보강 또는 동바리를 설치하거나 해체하는 작업\n3. 밀폐된 장소에서 하는 용접작업 또는 습한 장소에서 하는 전기용접 작업","17. 전압이 75볼트 이상인 정전 및 활선작업\n27. 건축물의 골조, 다리의 상부구조 또는 탑의 금속제의 부재로 구성되는 것의 조립· 해체 또는 변경작업"]
[]
[{"$f":"OFFSET($A$2,ROW()-2,$A$2,1,1)","v":"산업안전 및 사고 예방에 관한 사항"},{"$f":"OFFSET($A$1,ROW()-1,$B$2,1)","v":"고기압 장해의 인체에 미치는 영향에 관한 사항"},{"$f":"OFFSET($A$1,ROW()-1,$C$2,1)","v":"고기압 장해의 인체에 미치는 영향에 관한 사항"},{"$f":"OFFSET($A$1,ROW()-1,$D$2,1,1)","v":"용접 흄, 분진 및 유해광선 등의 유해성에 관한 사항"},"산업안전 및 사고 예방에 관한 사항","산업안전 및 사고 예방에 관한 사항","산업안전 및 사고 예방에 관한 사항","산업안전 및 사고 예방에 관한 사항","산업안전 및 사고 예방에 관한 사항","산업안전 및 사고 예방에 관한 사항","산업안전 및 사고 예방에 관한 사항","산업안전 및 사고 예방에 관한 사항","산업안전 및 사고 예방에 관한 사항","산업안전 및 사고 예방에 관한 사항","산업안전 및 사고 예방에 관한 사항","아래의 내용 중 특수형태근로종사자의 직무에 적합한 내용을 교육해야 한다.","아래의 내용 중 특수형태근로종사자의 직무에 적합한 내용을 교육해야 한다.","장비유도원 교육의 목적","대상화학물질의 명칭(또는 제품명)","산업안전 및 사고 예방에 관한 사항","산업안전 및 사고 예방에 관한 사항","고기압 장해의 인체에 미치는 영향에 관한 사항","용접 흄, 분진 및 유해광선 등의 유해성에 관한 사항","작업순서, 안전작업방법 및 수칙에 관한 사항","폭발성·물반응성·자기반응성·자기발열성 물질, 자연발화성 액체·고체 및 인화성 액체의 성질이나 상태에 관한 사항","취급가스의 상태 및 성질에 관한 사항","각 계측장치의 취급 및 주의에 관한 사항","차단장치·정지장치 및 밸브 개폐장치의 점검에 관한 사항","분말·원재료의 인체에 미치는 영향에 관한 사항","건조설비 내외면 및 기기기능의 점검에 관한 사항","기계의 브레이크 비상정지장치 및 운반경로, 각종 기능 점검에 관한 사항","프레스의 특성과 위험성에 관한 사항","목재가공용 기계의 특성과 위험성에 관한 사항","운반하역기계 및 부속설비의 점검에 관한 사항","방호장치의 종류, 기능 및 취급에 관한 사항","방호장치의 기능 및 사용에 관한 사항","고열물의 재료 및 작업환경에 관한 사항","전기의 위험성 및 전격 방지에 관한 사항","콘크리트 해체 요령과 방호거리에 관한 사항","지반의 형태·구조 및 굴착 요령에 관한 사항","작업안전 점검 요령과 방법에 관한 사항"," 작업환경의 점검 요령과 방법에 관한 사항","폭발물 취급 요령과 대피 요령에 관한 사항","원부재료의 취급 방법 및 요령에 관한 사항","하역 기계·기구의 운전방법에 관한 사항","동바리의 조립방법 및 작업 절차에 관한 사항","비계의 조립순서 및 방법에 관한 사항","건립 및 버팀대의 설치순서에 관한 사항","붕괴·추락 및 재해 방지에 관한 사항","콘크리트 해체기계의 점검에 관한 사항","붕괴·추락 및 재해 방지에 관한 사항","기계 및 기기 점화장치 계측기의 점검에 관한 사항","안전시설 및 안전기준에 관한 사항","방사선의 유해·위험 및 인체에 미치는 영향","산소농도 측정 및 작업환경에 관한 사항","취급물질의 성질 및 상태에 관한 사항","로봇의 기본원리·구조 및 작업방법에 관한 사항","석면의 특성과 위험성","작업준비 및 작업절차에 관한 사항","타워크레인의 기계적 특성 및 방호장치 등에 관한 사항","용접 흄, 분진 및 유해광선 등의 유해성에 관한 사항","방호장치의 종류, 기능 및 취급에 관한 사항","방호장치의 종류, 기능 및 취급에 관한 사항","방호장치의 종류, 기능 및 취급에 관한 사항","지반의 형태·구조 및 굴착 요령에 관한 사항","작업안전 점검 요령과 방법에 관한 사항","전기의 위험성 및 전격 방지에 관한 사항"]
[{"$f":"OFFSET($A$2,ROW()-2,$A$2,1,1)","v":"산업보건 및 직업병 예방에 관한 사항"},{"$f":"OFFSET($A$1,ROW()-1,$B$2,1)","v":"작업의 시간·작업 방법 및 절차에 관한 사항"},{"$f":"OFFSET($A$1,ROW()-1,$C$2,1)","v":"작업의 시간·작업 방법 및 절차에 관한 사항"},{"$f":"OFFSET($A$1,ROW()-1,$D$2,1,1)","v":"가스용접기, 압력조정기, 호스 및 취관두(불꽃이 나오는 용접기의 앞부분) 등의 기기점검에 관한 사항"},"산업보건 및 직업병 예방에 관한 사항","산업보건 및 직업병 예방에 관한 사항","산업보건 및 직업병 예방에 관한 사항","산업보건 및 직업병 예방에 관한 사항","산업보건 및 직업병 예방에 관한 사항","산업보건 및 직업병 예방에 관한 사항","산업보건 및 직업병 예방에 관한 사항","산업보건 및 직업병 예방에 관한 사항","산업보건 및 직업병 예방에 관한 사항","산업보건 및 직업병 예방에 관한 사항","산업보건 및 직업병 예방에 관한 사항","산업안전 및 사고 예방에 관한 사항","산업안전 및 사고 예방에 관한 사항","장비유도원의 정의","물리적 위험성 및 건강 유해성","산업보건 및 직업병 예방에 관한 사항","산업보건 및 직업병 예방에 관한 사항","작업의 시간·작업 방법 및 절차에 관한 사항","가스용접기, 압력조정기, 호스 및 취관두(불꽃이 나오는 용접기의 앞부분) 등의 기기점검에 관한 사항","환기설비에 관한 사항","폭발 한계점, 발화점 및 인화점 등에 관한 사항","발생장치 등의 위험 방지에 관한 사항","투시창·수위 및 유량계 등의 점검 및 밸브의 조작주의에 관한 사항","탱크 내의 산소농도 측정 및 작업환경에 관한 사항","저장탱크 내부작업 및 복장보호구 착용에 관한 사항","복장보호구 착용에 관한 사항","작업 시작 전 준비사항 및 작업방법에 관한 사항","방호장치 종류와 취급에 관한 사항","방호장치의 종류와 구조 및 취급에 관한 사항","작업순서와 방법에 관한 사항","걸고리·와이어로프 및 비상정지장치 등의 기계·기구 점검에 관한 사항","기계, 기구, 달기체인 및 와이어 등의 점검에 관한 사항","출탕·주조 및 고열물의 취급과 안전작업방법에 관한 사항","해당 설비의 보수 및 점검에 관한 사항","작업안전조치 및 안전기준에 관한 사항","지반의 붕괴재해 예방에 관한 사항","동바리의 운반·취급 및 설치 시 안전작업에 관한 사항","붕괴 방지용 구조물 설치 및 안전작업 방법에 관한 사항","안전거리 및 안전기준에 관한 사항","물건의 위험성·낙하 및 붕괴재해 예방에 관한 사항","운반·이송경로의 안전작업방법 및 기준에 관한 사항","조립재료의 취급방법 및 설치기준에 관한 사항","비계작업의 재료 취급 및 설치에 관한 사항","조립 해체 시의 추락재해 및 위험요인에 관한 사항","부재의 강도·재질 및 특성에 관한 사항","파괴 시의 안전거리 및 대피 요령에 관한 사항","설치·해체 순서 및 안전작업방법에 관한 사항","열관리 및 방호장치에 관한 사항","압력용기의 위험성에 관한 사항","방사선의 측정기기 기능의 점검에 관한 사항","사고 시의 응급처치 및 비상 시 구출에 관한 사항","유해물질이 인체에 미치는 영향","이상 발생 시 응급조치에 관한 사항","석면해체·제거의 작업방법에 관한 사항","작업장 내 위험물, 가연물의 사용·보관·설치 현황에 관한 사항","화물의 취급 및 안전작업방법에 관한 사항","가스용접기, 압력조정기, 호스 및 취관두(불꽃이 나오는 용접기의 앞부분) 등의 기기점검에 관한 사항","걸고리·와이어로프 및 비상정지장치 등의 기계·기구 점검에 관한 사항","걸고리·와이어로프 및 비상정지장치 등의 기계·기구 점검에 관한 사항","걸고리·와이어로프 및 비상정지장치 등의 기계·기구 점검에 관한 사항","지반의 붕괴재해 예방에 관한 사항","동바리의 운반·취급 및 설치 시 안전작업에 관한 사항","해당 설비의 보수 및 점검에 관한 사항"]
["위험성 평가에 관한 사항 <개정 2023. 9. 27.>","압기공법에 관한 기초지식 및 보호구 착용에 관한 사항","압기공법에 관한 기초지식 및 보호구 착용에 관한 사항","작업방법·순서 및 응급처치에 관한 사항","위험성 평가에 관한 사항 <개정 2023. 9. 27.>","위험성 평가에 관한 사항 <개정 2023. 9. 27.>","위험성 평가에 관한 사항 <개정 2023. 9. 27.>","위험성 평가에 관한 사항 <개정 2023. 9. 27.>","위험성 평가에 관한 사항 <개정 2023. 9. 27.>","위험성 평가에 관한 사항 <개정 2023. 9. 27.>","위험성 평가에 관한 사항 <개정 2023. 9. 27.>","위험성 평가에 관한 사항 <개정 2023. 9. 27.>","위험성 평가에 관한 사항 <개정 2023. 9. 27.>","위험성 평가에 관한 사항 <개정 2023. 9. 27.>","위험성 평가에 관한 사항 <개정 2023. 9. 27.>","산업보건 및 직업병 예방에 관한 사항","산업보건 및 직업병 예방에 관한 사항","장비유도원의 역할","취급상의 주의사항","위험성 평가에 관한 사항 <개정 2023. 9. 27.>","위험성 평가에 관한 사항 <개정 2023. 9. 27.>","압기공법에 관한 기초지식 및 보호구 착용에 관한 사항","작업방법·순서 및 응급처치에 관한 사항","전격 방지 및 보호구 착용에 관한 사항","취급방법 및 안전수칙에 관한 사항","고압가스 저장설비 및 안전취급방법에 관한 사항","세척액의 유해성 및 인체에 미치는 영향에 관한 사항","안전보호구 및 이상 발생 시 응급조치에 관한 사항","작업의 지정·방법·순서 및 작업환경 점검에 관한 사항","건조 시 유해가스 및 고열 등이 인체에 미치는 영향에 관한 사항","취급물의 유해·위험에 관한 사항","안전작업방법에 관한 사항","안전기준에 관한 사항","안전운전방법에 관한 사항","화물의 취급 및 안전작업방법에 관한 사항","화물의 권상·권하 작업방법 및 안전작업 지도에 관한 사항","고열작업의 유해·위험 및 보호구 착용에 관한 사항","정전작업·활선작업 시의 안전작업방법 및 순서에 관한 사항","파쇄기의 조작 및 공통작업 신호에 관한 사항","붕괴 방지용 구조물 설치 및 작업방법에 관한 사항","해체작업 순서와 안전기준에 관한 사항","재료의 운반 및 취급·설치의 안전기준에 관한 사항","방호물의 설치 및 기준에 관한 사항","적재방법 및 전도 방지에 관한 사항","중량물 취급 요령과 신호 요령에 관한 사항","조립 해체 시의 사고 예방에 관한 사항","추락재해 방지에 관한 사항","건립용 기계의 조작 및 작업신호 방법에 관한 사항","조립·설치 순서 및 안전작업방법에 관한 사항","작업방법·순서 및 신호 방법 등에 관한 사항","부재의 구조·재질 및 특성에 관한 사항","작업순서 및 방법에 관한 사항","용기 취급 및 설치기준에 관한 사항","방호거리·방호벽 및 방사선물질의 취급 요령에 관한 사항","보호구 착용 및 보호 장비 사용에 관한 사항","국소배기장치 및 안전설비에 관한 사항","안전시설 및 안전기준에 관한 사항","장비 및 보호구 사용에 관한 사항","화재위험작업에 따른 인근 인화성 액체에 대한 방호조치에 관한 사항 ","신호방법 및 요령에 관한 사항","작업방법·순서 및 응급처치에 관한 사항","화물의 취급 및 안전작업방법에 관한 사항","화물의 취급 및 안전작업방법에 관한 사항","화물의 취급 및 안전작업방법에 관한 사항","붕괴 방지용 구조물 설치 및 작업방법에 관한 사항","해체작업 순서와 안전기준에 관한 사항","정전작업·활선작업 시의 안전작업방법 및 순서에 관한 사항"]
["건강증진 및 질병 예방에 관한 사항","이상 발생 시 응급조치에 관한 사항","이상 발생 시 응급조치에 관한 사항","안전기 및 보호구 취급에 관한 사항","건강증진 및 질병 예방에 관한 사항","건강증진 및 질병 예방에 관한 사항","건강증진 및 질병 예방에 관한 사항","유해ㆍ위험 작업환경 관리에 관한 사항","산업안전보건법령 및 산업재해보상보험 제도에 관한 사항","산업안전보건법령 및 산업재해보상보험 제도에 관한 사항","산업안전보건법령 및 산업재해보상보험 제도에 관한 사항","산업안전보건법령 및 산업재해보상보험 제도에 관한 사항","산업안전보건법령 및 산업재해보상보험 제도에 관한 사항","산업안전보건법령 및 산업재해보상보험 제도에 관한 사항","산업안전보건법령 및 산업재해보상보험 제도에 관한 사항","건강증진 및 질병 예방에 관한 사항","건강증진 및 질병 예방에 관한 사항","건설기계 운전자의 준수사항","적절한 보호구","산업안전보건법령 및 산업재해보상보험 제도에 관한 사항","산업안전보건법령 및 산업재해보상보험 제도에 관한 사항","이상 발생 시 응급조치에 관한 사항","안전기 및 보호구 취급에 관한 사항","질식 시 응급조치에 관한 사항","이상 발견 시의 응급처치 및 대피 요령에 관한 사항","설비 및 기구의 점검 요령","작업 절차에 관한 사항","작업절차·방법 및 유해·위험에 관한 사항","팬·풍기(風旗) 조작 및 취급에 관한 사항","건조설비에 의한 화재·폭발 예방에 관한 사항","구조상의 이상 시 응급처치에 관한 사항","프레스 안전기준에 관한 사항","안전작업방법 및 목재 취급에 관한 사항","화물의 취급 및 작업신호에 관한 사항","신호방법 및 공동작업에 관한 사항","기계·기구에 특성 및 동작원리에 관한 사항","안전기준 및 중량물 취급에 관한 사항","절연용 보호구, 절연용 보호구 및 활선작업용 기구 등의 사용에 관한 사항","보호구 및 방호장비 등에 관한 사항","보호구의 종류 및 사용에 관한 사항","보호구 취급 및 사용에 관한 사항","보호구의 종류 및 사용에 관한 사항","보호구 및 신호방법 등에 관한 사항","보호구 착용에 관한 사항","작업안전 점검과 보호구 취급에 관한 사항","보호구 착용 및 점검에 관한 사항","보호구 착용에 관한 사항","안전장비 착용 및 해체순서에 관한 사항","보호구 착용 및 작업 점검에 관한 사항","해체·파괴 시의 작업안전기준 및 보호구에 관한 사항","신호방법 및 요령에 관한 사항","그 밖에 안전·보건관리에 필요한 사항","작업안전 점검 방법 및 요령에 관한 사항","응급처치 및 보호구 착용에 관한 사항","작업내용ㆍ안전작업방법 및 절차에 관한 사항","안전작업방법 및 보호구 사용에 관한 사항","조작방법 및 작업순서에 관한 사항","그 밖에 안전·보건관리에 필요한 사항","화재위험작업으로 인한 불꽃, 불티 등의 흩날림 방지 조치에 관한 사항","인양 물건의 위험성 및 낙하·비래·충돌재해 예방에 관한 사항","안전기 및 보호구 취급에 관한 사항","신호방법 및 공동작업에 관한 사항","신호방법 및 공동작업에 관한 사항","신호방법 및 공동작업에 관한 사항","보호구의 종류 및 사용에 관한 사항","보호구 취급 및 사용에 관한 사항","절연용 보호구, 절연용 보호구 및 활선작업용 기구 등의 사용에 관한 사항"]
["유해·위험 작업환경 관리에 관한 사항","그 밖에 안전·보건관리에 필요한 사항","그 밖에 안전·보건관리에 필요한 사항","화재예방 및 초기대응에 관한사항","유해·위험 작업환경 관리에 관한 사항","유해·위험 작업환경 관리에 관한 사항","유해·위험 작업환경 관리에 관한 사항","산업안전보건법령 및 산업재해보상보험 제도에 관한 사항 ","직무스트레스 예방 및 관리에 관한 사항","직무스트레스 예방 및 관리에 관한 사항","직무스트레스 예방 및 관리에 관한 사항","직무스트레스 예방 및 관리에 관한 사항","직무스트레스 예방 및 관리에 관한 사항","직무스트레스 예방 및 관리에 관한 사항","직무스트레스 예방 및 관리에 관한 사항","유해·위험 작업환경 관리에 관한 사항","유해·위험 작업환경 관리에 관한 사항","근로자 및 관리감독자 준수사항","응급조치 요령 및 사고시 대처방법","직무스트레스 예방 및 관리에 관한 사항","직무스트레스 예방 및 관리에 관한 사항","그 밖에 안전·보건관리에 필요한 사항","화재예방 및 초기대응에 관한사항","작업환경 점검에 관한 사항","화기·정전기·충격 및 자연발화 등의 위험방지에 관한 사항","그 밖에 안전·보건관리에 필요한 사항","그 밖에 안전·보건관리에 필요한 사항","그 밖에 안전·보건관리에 필요한 사항","분진 폭발에 관한 사항","","그 밖에 안전·보건관리에 필요한 사항","그 밖에 안전·보건관리에 필요한 사항","그 밖에 안전·보건관리에 필요한 사항","그 밖에 안전·보건관리에 필요한 사항","인양 물건의 위험성 및 낙하·비래(飛來)·충돌재해 예방에 관한 사항","신호방법 및 공동작업에 관한 사항","그 밖에 안전·보건관리에 필요한 사항","그 밖에 안전·보건관리에 필요한 사항","그 밖에 안전·보건관리에 필요한 사항","그 밖에 안전·보건관리에 필요한 사항","그 밖에 안전·보건관리에 필요한 사항","소화설비의 설치장소 및 사용방법에 관한 사항","그 밖에 안전·보건관리에 필요한 사항","그 밖에 안전·보건관리에 필요한 사항","그 밖에 안전·보건관리에 필요한 사항","그 밖에 안전·보건관리에 필요한 사항","비계상부 작업 시 최대 적재하중에 관한 사항","그 밖에 안전·보건관리에 필요한 사항","그 밖에 안전·보건관리에 필요한 사항","그 밖에 안전·보건관리에 필요한 사항","이상 발생 시 응급조치에 관한 사항","","그 밖에 안전·보건관리에 필요한 사항","그 밖에 안전·보건관리에 필요한 사항","장비ㆍ설비 및 시설 등의 안전점검에 관한 사항","그 밖에 안전·보건관리에 필요한 사항","","","인화성 액체의 증기가 남아 있지 않도록 환기 등의 조치에 관한 사항","인양물이 적재될 지반의 조건, 인양하중, 풍압 등이 인양물과 타워크레인에 미치는 영향","화재예방 및 초기대응에 관한사항","인양 물건의 위험성 및 낙하·비래(飛來)·충돌재해 예방에 관한 사항","인양 물건의 위험성 및 낙하·비래(飛來)·충돌재해 예방에 관한 사항","인양 물건의 위험성 및 낙하·비래(飛來)·충돌재해 예방에 관한 사항","그 밖에 안전·보건관리에 필요한 사항","그 밖에 안전·보건관리에 필요한 사항","그 밖에 안전·보건관리에 필요한 사항"]
["산업안전보건법령 및 산업재해보상보험 제도에 관한 사항","","","그 밖에 안전·보건관리에 필요한 사항","산업안전보건법령 및 산업재해보상보험 제도에 관한 사항","산업안전보건법령 및 산업재해보상보험 제도에 관한 사항","산업안전보건법령 및 산업재해보상보험 제도에 관한 사항","직무스트레스 예방 및 관리에 관한 사항","직장 내 괴롭힘, 고객의 폭언 등으로 인한 건강장해 예방 및 관리에 관한 사항","직장 내 괴롭힘, 고객의 폭언 등으로 인한 건강장해 예방 및 관리에 관한 사항","직장 내 괴롭힘, 고객의 폭언 등으로 인한 건강장해 예방 및 관리에 관한 사항","직장 내 괴롭힘, 고객의 폭언 등으로 인한 건강장해 예방 및 관리에 관한 사항","직장 내 괴롭힘, 고객의 폭언 등으로 인한 건강장해 예방 및 관리에 관한 사항","직장 내 괴롭힘, 고객의 폭언 등으로 인한 건강장해 예방 및 관리에 관한 사항","직장 내 괴롭힘, 고객의 폭언 등으로 인한 건강장해 예방 및 관리에 관한 사항","산업안전보건법령 및 산업재해보상보험 제도에 관한 사항","산업안전보건법령 및 산업재해보상보험 제도에 관한 사항","유도자 주의사항 및 신호방법","물질안전보건자료 및 경고표지를 이해하는 방법","직장 내 괴롭힘, 고객의 폭언 등으로 인한 건강장해 예방 및 관리에 관한 사항","직장 내 괴롭힘, 고객의 폭언 등으로 인한 건강장해 예방 및 관리에 관한 사항","","그 밖에 안전·보건관리에 필요한 사항","그 밖에 안전·보건관리에 필요한 사항","작업순서, 취급주의사항 및 방호거리 등에 관한 사항","","","","그 밖에 안전·보건관리에 필요한 사항","","","","","","인양물이 적재될 지반의 조건, 인양하중, 풍압 등이 인양물과 타워크레인에 미치는 영향","그 밖에 안전·보건관리에 필요한 사항","","","","","","그 밖에 안전·보건관리에 필요한 사항","","","","","그 밖에 안전·보건관리에 필요한 사항","","","","그 밖에 안전·보건관리에 필요한 사항","","","","그 밖에 안전ㆍ보건관리에 필요한 사항","","","","화재감시자의 직무 및 피난교육 등 비상조치에 관한 사항","그 밖에 안전·보건관리에 필요한 사항","그 밖에 안전·보건관리에 필요한 사항","인양물이 적재될 지반의 조건, 인양하중, 풍압 등이 인양물과 타워크레인에 미치는 영향","인양물이 적재될 지반의 조건, 인양하중, 풍압 등이 인양물과 타워크레인에 미치는 영향","인양물이 적재될 지반의 조건, 인양하중, 풍압 등이 인양물과 타워크레인에 미치는 영향",null,"",""]
["직무스트레스 예방 및 관리에 관한 사항","","","","직무스트레스 예방 및 관리에 관한 사항","직무스트레스 예방 및 관리에 관한 사항","직무스트레스 예방 및 관리에 관한 사항","직장 내 괴롭힘, 고객의 폭언 등으로 인한 건강장해 예방 및 관리에 관한 사항","기계ㆍ기구의 위험성과 작업의 순서 및 동선에 관한 사항","기계ㆍ기구의 위험성과 작업의 순서 및 동선에 관한 사항","기계ㆍ기구의 위험성과 작업의 순서 및 동선에 관한 사항","기계ㆍ기구의 위험성과 작업의 순서 및 동선에 관한 사항","기계ㆍ기구의 위험성과 작업의 순서 및 동선에 관한 사항","기계ㆍ기구의 위험성과 작업의 순서 및 동선에 관한 사항","기계ㆍ기구의 위험성과 작업의 순서 및 동선에 관한 사항","직무스트레스 예방 및 관리에 관한 사항","직무스트레스 예방 및 관리에 관한 사항","협착 등 사고사례 전파","","기계ㆍ기구의 위험성과 작업의 순서 및 동선에 관한 사항","기계ㆍ기구의 위험성과 작업의 순서 및 동선에 관한 사항","","","","그 밖에 안전·보건관리에 필요한 사항","","","","","","","","","","그 밖에 안전·보건관리에 필요한 사항","","","","","","","","","","","","","","","","","","","","","","","","그 밖에 안전·보건관리에 필요한 사항","","","그 밖에 안전·보건관리에 필요한 사항","그 밖에 안전·보건관리에 필요한 사항","그 밖에 안전·보건관리에 필요한 사항",null,"",""]
["직장 내 괴롭힘, 고객의 폭언 등으로 인한 건강장해 예방 및 관리에 관한 사항",{"$f":"IF(OFFSET($C$2,ROW()-2,$C$2,1,1)>0,OFFSET($C$2,ROW()-2,$C$2,1,1),\"\")","v":"산업안전 및 사고 예방에 관한 사항"},"산업안전 및 사고 예방에 관한 사항","작업준비 및 작업절차에 관한 사항","직장 내 괴롭힘, 고객의 폭언 등으로 인한 건강장해 예방 및 관리에 관한 사항","직장 내 괴롭힘, 고객의 폭언 등으로 인한 건강장해 예방 및 관리에 관한 사항","직장 내 괴롭힘, 고객의 폭언 등으로 인한 건강장해 예방 및 관리에 관한 사항","작업공정의 유해ㆍ위험과 재해 예방대책에 관한 사항","작업 개시 전 점검에 관한 사항","작업 개시 전 점검에 관한 사항","작업 개시 전 점검에 관한 사항","작업 개시 전 점검에 관한 사항","작업 개시 전 점검에 관한 사항","작업 개시 전 점검에 관한 사항","작업 개시 전 점검에 관한 사항","직장 내 괴롭힘, 고객의 폭언 등으로 인한 건강장해 예방 및 관리에 관한 사항","직장 내 괴롭힘, 고객의 폭언 등으로 인한 건강장해 예방 및 관리에 관한 사항",null,"","작업 개시 전 점검에 관한 사항","작업 개시 전 점검에 관한 사항","산업안전 및 사고 예방에 관한 사항","산업안전 및 사고 예방에 관한 사항","산업안전 및 사고 예방에 관한 사항","산업안전 및 사고 예방에 관한 사항","산업안전 및 사고 예방에 관한 사항","산업안전 및 사고 예방에 관한 사항","산업안전 및 사고 예방에 관한 사항","산업안전 및 사고 예방에 관한 사항","산업안전 및 사고 예방에 관한 사항","산업안전 및 사고 예방에 관한 사항","산업안전 및 사고 예방에 관한 사항","산업안전 및 사고 예방에 관한 사항","산업안전 및 사고 예방에 관한 사항","산업안전 및 사고 예방에 관한 사항","산업안전 및 사고 예방에 관한 사항","산업안전 및 사고 예방에 관한 사항","산업안전 및 사고 예방에 관한 사항","산업안전 및 사고 예방에 관한 사항","산업안전 및 사고 예방에 관한 사항","산업안전 및 사고 예방에 관한 사항","산업안전 및 사고 예방에 관한 사항","산업안전 및 사고 예방에 관한 사항","산업안전 및 사고 예방에 관한 사항","산업안전 및 사고 예방에 관한 사항","산업안전 및 사고 예방에 관한 사항","산업안전 및 사고 예방에 관한 사항","산업안전 및 사고 예방에 관한 사항","산업안전 및 사고 예방에 관한 사항","산업안전 및 사고 예방에 관한 사항","산업안전 및 사고 예방에 관한 사항","산업안전 및 사고 예방에 관한 사항","산업안전 및 사고 예방에 관한 사항","산업안전 및 사고 예방에 관한 사항","산업안전 및 사고 예방에 관한 사항","산업안전 및 사고 예방에 관한 사항","산업안전 및 사고 예방에 관한 사항","산업안전 및 사고 예방에 관한 사항","산업안전 및 사고 예방에 관한 사항","산업안전 및 사고 예방에 관한 사항","작업준비 및 작업절차에 관한 사항","지반의 형태·구조 및 굴착 요령에 관한 사항","비계의 조립순서 및 방법에 관한 사항","건립 및 버팀대의 설치순서에 관한 사항","작업안전 점검 요령과 방법에 관한 사항","작업순서, 안전작업방법 및 수칙에 관한 사항","건립 및 버팀대의 설치순서에 관한 사항"]
["","산업보건 및 직업병 예방에 관한 사항","산업보건 및 직업병 예방에 관한 사항","작업장 내 위험물, 가연물의 사용·보관·설치 현황에 관한 사항","","","","사업장 내 안전보건관리체제 및 안전ㆍ보건조치 현황에 관한 사항","정리정돈 및 청소에 관한 사항","정리정돈 및 청소에 관한 사항","정리정돈 및 청소에 관한 사항","물질안전보건자료에 관한 사항","정리정돈 및 청소에 관한 사항","정리정돈 및 청소에 관한 사항","물질안전보건자료에 관한 사항","기계·기구의 위험성과 작업의 순서 및 동선에 관한 사항","기계·기구의 위험성과 작업의 순서 및 동선에 관한 사항",null,"","물질안전보건자료에 관한 사항","물질안전보건자료에 관한 사항","산업보건 및 직업병 예방에 관한 사항","산업보건 및 직업병 예방에 관한 사항","산업보건 및 직업병 예방에 관한 사항","산업보건 및 직업병 예방에 관한 사항","산업보건 및 직업병 예방에 관한 사항","산업보건 및 직업병 예방에 관한 사항","산업보건 및 직업병 예방에 관한 사항","산업보건 및 직업병 예방에 관한 사항","산업보건 및 직업병 예방에 관한 사항","산업보건 및 직업병 예방에 관한 사항","산업보건 및 직업병 예방에 관한 사항","산업보건 및 직업병 예방에 관한 사항","산업보건 및 직업병 예방에 관한 사항","산업보건 및 직업병 예방에 관한 사항","산업보건 및 직업병 예방에 관한 사항","산업보건 및 직업병 예방에 관한 사항","산업보건 및 직업병 예방에 관한 사항","산업보건 및 직업병 예방에 관한 사항","산업보건 및 직업병 예방에 관한 사항","산업보건 및 직업병 예방에 관한 사항","산업보건 및 직업병 예방에 관한 사항","산업보건 및 직업병 예방에 관한 사항","산업보건 및 직업병 예방에 관한 사항","산업보건 및 직업병 예방에 관한 사항","산업보건 및 직업병 예방에 관한 사항","산업보건 및 직업병 예방에 관한 사항","산업보건 및 직업병 예방에 관한 사항","산업보건 및 직업병 예방에 관한 사항","산업보건 및 직업병 예방에 관한 사항","산업보건 및 직업병 예방에 관한 사항","산업보건 및 직업병 예방에 관한 사항","산업보건 및 직업병 예방에 관한 사항","산업보건 및 직업병 예방에 관한 사항","산업보건 및 직업병 예방에 관한 사항","산업보건 및 직업병 예방에 관한 사항","산업보건 및 직업병 예방에 관한 사항","산업보건 및 직업병 예방에 관한 사항","산업보건 및 직업병 예방에 관한 사항","산업보건 및 직업병 예방에 관한 사항","작업장 내 위험물, 가연물의 사용·보관·설치 현황에 관한 사항","지반의 붕괴재해 예방에 관한 사항","비계작업의 재료 취급 및 설치에 관한 사항","조립 해체 시의 추락재해 및 위험요인에 관한 사항","동바리의 운반·취급 및 설치 시 안전작업에 관한 사항","환기설비에 관한 사항","조립 해체 시의 추락재해 및 위험요인에 관한 사항"]
["","산업안전보건법령 및 산업재해보상보험 제도에 관한 사항","산업안전보건법령 및 산업재해보상보험 제도에 관한 사항","화재위험작업에 따른 인근 인화성 액체에 대한 방호조치에 관한 사항 ","","","","표준안전 작업방법 결정 및 지도ㆍ감독 요령에 관한 사항","사고 발생 시 긴급조치에 관한 사항","사고 발생 시 긴급조치에 관한 사항","사고 발생 시 긴급조치에 관한 사항","사업장 내 안전보건관리체제 및 안전ㆍ보건조치 현황에 관한 사항","사고 발생 시 긴급조치에 관한 사항","사고 발생 시 긴급조치에 관한 사항","사업장 내 안전보건관리체제 및 안전ㆍ보건조치 현황에 관한 사항","작업 개시 전 점검에 관한 사항, 보호구 착용에 관한 사항","작업 개시 전 점검에 관한 사항",null,"","사업장 내 안전보건관리체제 및 안전ㆍ보건조치 현황에 관한 사항","사업장 내 안전보건관리체제 및 안전ㆍ보건조치 현황에 관한 사항","산업안전보건법령 및 산업재해보상보험 제도에 관한 사항","산업안전보건법령 및 산업재해보상보험 제도에 관한 사항","산업안전보건법령 및 산업재해보상보험 제도에 관한 사항","산업안전보건법령 및 산업재해보상보험 제도에 관한 사항","산업안전보건법령 및 산업재해보상보험 제도에 관한 사항","산업안전보건법령 및 산업재해보상보험 제도에 관한 사항","산업안전보건법령 및 산업재해보상보험 제도에 관한 사항","산업안전보건법령 및 산업재해보상보험 제도에 관한 사항","산업안전보건법령 및 산업재해보상보험 제도에 관한 사항","산업안전보건법령 및 산업재해보상보험 제도에 관한 사항","산업안전보건법령 및 산업재해보상보험 제도에 관한 사항","산업안전보건법령 및 산업재해보상보험 제도에 관한 사항","산업안전보건법령 및 산업재해보상보험 제도에 관한 사항","산업안전보건법령 및 산업재해보상보험 제도에 관한 사항","산업안전보건법령 및 산업재해보상보험 제도에 관한 사항","산업안전보건법령 및 산업재해보상보험 제도에 관한 사항","산업안전보건법령 및 산업재해보상보험 제도에 관한 사항","산업안전보건법령 및 산업재해보상보험 제도에 관한 사항","산업안전보건법령 및 산업재해보상보험 제도에 관한 사항","산업안전보건법령 및 산업재해보상보험 제도에 관한 사항","산업안전보건법령 및 산업재해보상보험 제도에 관한 사항","산업안전보건법령 및 산업재해보상보험 제도에 관한 사항","산업안전보건법령 및 산업재해보상보험 제도에 관한 사항","산업안전보건법령 및 산업재해보상보험 제도에 관한 사항","산업안전보건법령 및 산업재해보상보험 제도에 관한 사항","산업안전보건법령 및 산업재해보상보험 제도에 관한 사항","산업안전보건법령 및 산업재해보상보험 제도에 관한 사항","산업안전보건법령 및 산업재해보상보험 제도에 관한 사항","산업안전보건법령 및 산업재해보상보험 제도에 관한 사항","산업안전보건법령 및 산업재해보상보험 제도에 관한 사항","산업안전보건법령 및 산업재해보상보험 제도에 관한 사항","산업안전보건법령 및 산업재해보상보험 제도에 관한 사항","산업안전보건법령 및 산업재해보상보험 제도에 관한 사항","산업안전보건법령 및 산업재해보상보험 제도에 관한 사항","산업안전보건법령 및 산업재해보상보험 제도에 관한 사항","산업안전보건법령 및 산업재해보상보험 제도에 관한 사항","산업안전보건법령 및 산업재해보상보험 제도에 관한 사항","산업안전보건법령 및 산업재해보상보험 제도에 관한 사항","산업안전보건법령 및 산업재해보상보험 제도에 관한 사항","화재위험작업에 따른 인근 인화성 액체에 대한 방호조치에 관한 사항 ","붕괴 방지용 구조물 설치 및 작업방법에 관한 사항","추락재해 방지에 관한 사항","건립용 기계의 조작 및 작업신호 방법에 관한 사항","해체작업 순서와 안전기준에 관한 사항","전격 방지 및 보호구 착용에 관한 사항","건립용 기계의 조작 및 작업신호 방법에 관한 사항"]
["","직무스트레스 예방 및 관리에 관한 사항","직무스트레스 예방 및 관리에 관한 사항","화재위험작업으로 인한 불꽃, 불티 등의 흩날림 방지 조치에 관한 사항","","","","현장근로자와의 의사소통능력 및 강의능력 등 안전보건교육 능력 배양에 관한 사항","물질안전보건자료에 관한 사항","물질안전보건자료에 관한 사항","물질안전보건자료에 관한 사항","표준안전 작업방법 결정 및 지도ㆍ감독 요령에 관한 사항","물질안전보건자료에 관한 사항","물질안전보건자료에 관한 사항","표준안전 작업방법 결정 및 지도ㆍ감독 요령에 관한 사항","정리정돈 및 청소에 관한 사항","정리정돈 및 청소에 관한 사항",null,"","표준안전 작업방법 결정 및 지도ㆍ감독 요령에 관한 사항","표준안전 작업방법 결정 및 지도ㆍ감독 요령에 관한 사항","직무스트레스 예방 및 관리에 관한 사항","직무스트레스 예방 및 관리에 관한 사항","직무스트레스 예방 및 관리에 관한 사항","직무스트레스 예방 및 관리에 관한 사항","직무스트레스 예방 및 관리에 관한 사항","직무스트레스 예방 및 관리에 관한 사항","직무스트레스 예방 및 관리에 관한 사항","직무스트레스 예방 및 관리에 관한 사항","직무스트레스 예방 및 관리에 관한 사항","직무스트레스 예방 및 관리에 관한 사항","직무스트레스 예방 및 관리에 관한 사항","직무스트레스 예방 및 관리에 관한 사항","직무스트레스 예방 및 관리에 관한 사항","직무스트레스 예방 및 관리에 관한 사항","직무스트레스 예방 및 관리에 관한 사항","직무스트레스 예방 및 관리에 관한 사항","직무스트레스 예방 및 관리에 관한 사항","직무스트레스 예방 및 관리에 관한 사항","직무스트레스 예방 및 관리에 관한 사항","직무스트레스 예방 및 관리에 관한 사항","직무스트레스 예방 및 관리에 관한 사항","직무스트레스 예방 및 관리에 관한 사항","직무스트레스 예방 및 관리에 관한 사항","직무스트레스 예방 및 관리에 관한 사항","직무스트레스 예방 및 관리에 관한 사항","직무스트레스 예방 및 관리에 관한 사항","직무스트레스 예방 및 관리에 관한 사항","직무스트레스 예방 및 관리에 관한 사항","직무스트레스 예방 및 관리에 관한 사항","직무스트레스 예방 및 관리에 관한 사항","직무스트레스 예방 및 관리에 관한 사항","직무스트레스 예방 및 관리에 관한 사항","직무스트레스 예방 및 관리에 관한 사항","직무스트레스 예방 및 관리에 관한 사항","직무스트레스 예방 및 관리에 관한 사항","직무스트레스 예방 및 관리에 관한 사항","직무스트레스 예방 및 관리에 관한 사항","직무스트레스 예방 및 관리에 관한 사항","직무스트레스 예방 및 관리에 관한 사항","화재위험작업으로 인한 불꽃, 불티 등의 흩날림 방지 조치에 관한 사항","보호구의 종류 및 사용에 관한 사항","보호구 착용에 관한 사항","안전장비 착용 및 해체순서에 관한 사항","보호구 취급 및 사용에 관한 사항","질식 시 응급조치에 관한 사항","안전장비 착용 및 해체순서에 관한 사항"]
["","기계·기구의 위험성과 작업의 순서 및 동선에 관한 사항","기계·기구의 위험성과 작업의 순서 및 동선에 관한 사항","인화성 액체의 증기가 남아 있지 않도록 환기 등의 조치에 관한 사항","","","","비상시 또는 재해 발생 시 긴급조치에 관한 사항","","","","비상시 또는 재해 발생 시 긴급조치에 관한 사항","","","비상시 또는 재해 발생 시 긴급조치에 관한 사항","사고 발생 시 긴급조치에 관한 사항","사고 발생 시 긴급조치에 관한 사항",null,"","비상시 또는 재해 발생 시 긴급조치에 관한 사항","비상시 또는 재해 발생 시 긴급조치에 관한 사항","기계·기구의 위험성과 작업의 순서 및 동선에 관한 사항","기계·기구의 위험성과 작업의 순서 및 동선에 관한 사항","기계·기구의 위험성과 작업의 순서 및 동선에 관한 사항","기계·기구의 위험성과 작업의 순서 및 동선에 관한 사항","기계·기구의 위험성과 작업의 순서 및 동선에 관한 사항","기계·기구의 위험성과 작업의 순서 및 동선에 관한 사항","기계·기구의 위험성과 작업의 순서 및 동선에 관한 사항","기계·기구의 위험성과 작업의 순서 및 동선에 관한 사항","기계·기구의 위험성과 작업의 순서 및 동선에 관한 사항","기계·기구의 위험성과 작업의 순서 및 동선에 관한 사항","기계·기구의 위험성과 작업의 순서 및 동선에 관한 사항","기계·기구의 위험성과 작업의 순서 및 동선에 관한 사항","기계·기구의 위험성과 작업의 순서 및 동선에 관한 사항","기계·기구의 위험성과 작업의 순서 및 동선에 관한 사항","기계·기구의 위험성과 작업의 순서 및 동선에 관한 사항","기계·기구의 위험성과 작업의 순서 및 동선에 관한 사항","기계·기구의 위험성과 작업의 순서 및 동선에 관한 사항","기계·기구의 위험성과 작업의 순서 및 동선에 관한 사항","기계·기구의 위험성과 작업의 순서 및 동선에 관한 사항","기계·기구의 위험성과 작업의 순서 및 동선에 관한 사항","기계·기구의 위험성과 작업의 순서 및 동선에 관한 사항","기계·기구의 위험성과 작업의 순서 및 동선에 관한 사항","기계·기구의 위험성과 작업의 순서 및 동선에 관한 사항","기계·기구의 위험성과 작업의 순서 및 동선에 관한 사항","기계·기구의 위험성과 작업의 순서 및 동선에 관한 사항","기계·기구의 위험성과 작업의 순서 및 동선에 관한 사항","기계·기구의 위험성과 작업의 순서 및 동선에 관한 사항","기계·기구의 위험성과 작업의 순서 및 동선에 관한 사항","기계·기구의 위험성과 작업의 순서 및 동선에 관한 사항","기계·기구의 위험성과 작업의 순서 및 동선에 관한 사항","기계·기구의 위험성과 작업의 순서 및 동선에 관한 사항","기계·기구의 위험성과 작업의 순서 및 동선에 관한 사항","기계·기구의 위험성과 작업의 순서 및 동선에 관한 사항","기계·기구의 위험성과 작업의 순서 및 동선에 관한 사항","기계·기구의 위험성과 작업의 순서 및 동선에 관한 사항","기계·기구의 위험성과 작업의 순서 및 동선에 관한 사항","기계·기구의 위험성과 작업의 순서 및 동선에 관한 사항","기계·기구의 위험성과 작업의 순서 및 동선에 관한 사항","기계·기구의 위험성과 작업의 순서 및 동선에 관한 사항","인화성 액체의 증기가 남아 있지 않도록 환기 등의 조치에 관한 사항","그 밖에 안전·보건관리에 필요한 사항","비계상부 작업 시 최대 적재하중에 관한 사항","그 밖에 안전·보건관리에 필요한 사항","그 밖에 안전·보건관리에 필요한 사항","작업환경 점검에 관한 사항","그 밖에 안전·보건관리에 필요한 사항"]
["","작업 개시 전 점검에 관한 사항","작업 개시 전 점검에 관한 사항","화재감시자의 직무 및 피난교육 등 비상조치에 관한 사항","","","","그 밖의 관리감독자의 직무에 관한 사항","","","","그 밖의 관리감독자의 직무에 관한 사항","","","그 밖의 관리감독자의 직무에 관한 사항","물질안전보건자료에 관한 사항, 교통안전 및 운전안전에 관한 사항","물질안전보건자료에 관한 사항",null,"","그 밖의 관리감독자의 직무에 관한 사항","그 밖의 관리감독자의 직무에 관한 사항","작업 개시 전 점검에 관한 사항","작업 개시 전 점검에 관한 사항","작업 개시 전 점검에 관한 사항","작업 개시 전 점검에 관한 사항","작업 개시 전 점검에 관한 사항","작업 개시 전 점검에 관한 사항","작업 개시 전 점검에 관한 사항","작업 개시 전 점검에 관한 사항","작업 개시 전 점검에 관한 사항","작업 개시 전 점검에 관한 사항","작업 개시 전 점검에 관한 사항","작업 개시 전 점검에 관한 사항","작업 개시 전 점검에 관한 사항","작업 개시 전 점검에 관한 사항","작업 개시 전 점검에 관한 사항","작업 개시 전 점검에 관한 사항","작업 개시 전 점검에 관한 사항","작업 개시 전 점검에 관한 사항","작업 개시 전 점검에 관한 사항","작업 개시 전 점검에 관한 사항","작업 개시 전 점검에 관한 사항","작업 개시 전 점검에 관한 사항","작업 개시 전 점검에 관한 사항","작업 개시 전 점검에 관한 사항","작업 개시 전 점검에 관한 사항","작업 개시 전 점검에 관한 사항","작업 개시 전 점검에 관한 사항","작업 개시 전 점검에 관한 사항","작업 개시 전 점검에 관한 사항","작업 개시 전 점검에 관한 사항","작업 개시 전 점검에 관한 사항","작업 개시 전 점검에 관한 사항","작업 개시 전 점검에 관한 사항","작업 개시 전 점검에 관한 사항","작업 개시 전 점검에 관한 사항","작업 개시 전 점검에 관한 사항","작업 개시 전 점검에 관한 사항","작업 개시 전 점검에 관한 사항","작업 개시 전 점검에 관한 사항","화재감시자의 직무 및 피난교육 등 비상조치에 관한 사항","","그 밖에 안전·보건관리에 필요한 사항",null,null,"그 밖에 안전·보건관리에 필요한 사항",""]
["","정리정돈 및 청소에 관한 사항","정리정돈 및 청소에 관한 사항","그 밖에 안전·보건관리에 필요한 사항","","","","",null,null,null,"",null,null,null,null,"교통안전 및 운전안전에 관한 사항",null,"","<개별내용>","<개별내용>","정리정돈 및 청소에 관한 사항","정리정돈 및 청소에 관한 사항","정리정돈 및 청소에 관한 사항","정리정돈 및 청소에 관한 사항","정리정돈 및 청소에 관한 사항","정리정돈 및 청소에 관한 사항","정리정돈 및 청소에 관한 사항","정리정돈 및 청소에 관한 사항","정리정돈 및 청소에 관한 사항","정리정돈 및 청소에 관한 사항","정리정돈 및 청소에 관한 사항","정리정돈 및 청소에 관한 사항","정리정돈 및 청소에 관한 사항","정리정돈 및 청소에 관한 사항","정리정돈 및 청소에 관한 사항","정리정돈 및 청소에 관한 사항","정리정돈 및 청소에 관한 사항","정리정돈 및 청소에 관한 사항","정리정돈 및 청소에 관한 사항","정리정돈 및 청소에 관한 사항","정리정돈 및 청소에 관한 사항","정리정돈 및 청소에 관한 사항","정리정돈 및 청소에 관한 사항","정리정돈 및 청소에 관한 사항","정리정돈 및 청소에 관한 사항","정리정돈 및 청소에 관한 사항","정리정돈 및 청소에 관한 사항","정리정돈 및 청소에 관한 사항","정리정돈 및 청소에 관한 사항","정리정돈 및 청소에 관한 사항","정리정돈 및 청소에 관한 사항","정리정돈 및 청소에 관한 사항","정리정돈 및 청소에 관한 사항","정리정돈 및 청소에 관한 사항","정리정돈 및 청소에 관한 사항","정리정돈 및 청소에 관한 사항","정리정돈 및 청소에 관한 사항","정리정돈 및 청소에 관한 사항","정리정돈 및 청소에 관한 사항","그 밖에 안전·보건관리에 필요한 사항","",null,null,null,"",""]
["","사고 발생 시 긴급조치에 관한 사항","사고 발생 시 긴급조치에 관한 사항",0,"","","",null,null,null,null,null,null,null,null,null,"보호구 착용에 관한 사항",null,"","제1호라목에 따른 교육내용(공통내용은 제외한다)과 같음","제1호라목에 따른 교육내용(공통내용은 제외한다)과 같음","사고 발생 시 긴급조치에 관한 사항","사고 발생 시 긴급조치에 관한 사항","사고 발생 시 긴급조치에 관한 사항","사고 발생 시 긴급조치에 관한 사항","사고 발생 시 긴급조치에 관한 사항","사고 발생 시 긴급조치에 관한 사항","사고 발생 시 긴급조치에 관한 사항","사고 발생 시 긴급조치에 관한 사항","사고 발생 시 긴급조치에 관한 사항","사고 발생 시 긴급조치에 관한 사항","사고 발생 시 긴급조치에 관한 사항","사고 발생 시 긴급조치에 관한 사항","사고 발생 시 긴급조치에 관한 사항","사고 발생 시 긴급조치에 관한 사항","사고 발생 시 긴급조치에 관한 사항","사고 발생 시 긴급조치에 관한 사항","사고 발생 시 긴급조치에 관한 사항","사고 발생 시 긴급조치에 관한 사항","사고 발생 시 긴급조치에 관한 사항","사고 발생 시 긴급조치에 관한 사항","사고 발생 시 긴급조치에 관한 사항","사고 발생 시 긴급조치에 관한 사항","사고 발생 시 긴급조치에 관한 사항","사고 발생 시 긴급조치에 관한 사항","사고 발생 시 긴급조치에 관한 사항","사고 발생 시 긴급조치에 관한 사항","사고 발생 시 긴급조치에 관한 사항","사고 발생 시 긴급조치에 관한 사항","사고 발생 시 긴급조치에 관한 사항","사고 발생 시 긴급조치에 관한 사항","사고 발생 시 긴급조치에 관한 사항","사고 발생 시 긴급조치에 관한 사항","사고 발생 시 긴급조치에 관한 사항","사고 발생 시 긴급조치에 관한 사항","사고 발생 시 긴급조치에 관한 사항","사고 발생 시 긴급조치에 관한 사항","사고 발생 시 긴급조치에 관한 사항","사고 발생 시 긴급조치에 관한 사항","사고 발생 시 긴급조치에 관한 사항"]
["",null,null,0,"","","",null,null,null,null,null,null,null,null,"","",null,null,null,null,"물질안전보건자료에 관한 사항","물질안전보건자료에 관한 사항","물질안전보건자료에 관한 사항","물질안전보건자료에 관한 사항","물질안전보건자료에 관한 사항","물질안전보건자료에 관한 사항","물질안전보건자료에 관한 사항","물질안전보건자료에 관한 사항","물질안전보건자료에 관한 사항","물질안전보건자료에 관한 사항","물질안전보건자료에 관한 사항","물질안전보건자료에 관한 사항","물질안전보건자료에 관한 사항","물질안전보건자료에 관한 사항","물질안전보건자료에 관한 사항","물질안전보건자료에 관한 사항","물질안전보건자료에 관한 사항","물질안전보건자료에 관한 사항","물질안전보건자료에 관한 사항","물질안전보건자료에 관한 사항","물질안전보건자료에 관한 사항","물질안전보건자료에 관한 사항","물질안전보건자료에 관한 사항","물질안전보건자료에 관한 사항","물질안전보건자료에 관한 사항","물질안전보건자료에 관한 사항","물질안전보건자료에 관한 사항","물질안전보건자료에 관한 사항","물질안전보건자료에 관한 사항","물질안전보건자료에 관한 사항","물질안전보건자료에 관한 사항","물질안전보건자료에 관한 사항","물질안전보건자료에 관한 사항","물질안전보건자료에 관한 사항","물질안전보건자료에 관한 사항","물질안전보건자료에 관한 사항","물질안전보건자료에 관한 사항","물질안전보건자료에 관한 사항","물질안전보건자료에 관한 사항"]
["",null,null,0,"","",""]
["",{"$f":"IF(OFFSET($C$2,ROW()-2,$C$2,1,1)>0,OFFSET($C$2,ROW()-2,$C$2,1,1),\"\")","v":""},"",{"$f":"IF(OFFSET($D$2,ROW()-2,$D$2,1,1)>0,OFFSET($D$2,ROW()-2,$D$2,1,1),\"\")","v":""},"","",""]
["","","",{"$f":"IF(OFFSET($D$2,ROW()-2,$D$2,1,1)>0,OFFSET($D$2,ROW()-2,$D$2,1,1),\"\")","v":""},"","",""]
["","","",{"$f":"IF(OFFSET($D$2,ROW()-2,$D$2,1,1)>0,OFFSET($D$2,ROW()-2,$D$2,1,1),\"\")","v":""},"","",""]
["","","",{"$f":"IF(OFFSET($D$2,ROW()-2,$D$2,1,1)>0,OFFSET($D$2,ROW()-2,$D$2,1,1),\"\")","v":""},"","",""]
[]
[]
[]
[]
[]
[]
[]
[]
[]
[]
[]
[]
[]
[]
[]
[]
[]
[]
[]
[]
[]
[]
[]
[]
[]
[]
[]
[]
[]
[]
[]
[]
[]
[]
[]
[]
[]
[]
[]
[]
[]
[]
[]
[]
[]
[]
[]
[]
[]
[]
[]
[]
["단기간 작업 또는 간헐적 작업"]